Workbook

Sheet Information
D1: FACTORISATION
D2: 3 terms
F4: PRESS F9 for NEW WorkSheet
B10: NOTES
B11: * Practise factorising algebraic expressions.
B12: * Addition gives an answer from 2 to 20 while subtraction in the inverse.
B13: * The questions have 3 terms
B14: * Expression contain integers.
B15: * This WorkSheet will generate 75 questions at random.
B16: * It is possible that some questions do not comply with accepted algrebraic rules.
B17: In this case just recalculate.

Sheet WorkSheet
D1: FACTORISATION
F2: =CONCATENATE("Worksheet ",Working!D1,Working!B1) -> Worksheet DP-837
A3: Factorise the following;
A4: =CONCATENATE(Working!A3,")") -> 1) | B4: =Working!AT3 -> 16gd + 32gp - 24gb | C4: =CONCATENATE(Working!A28,")") -> 26) | D4: =Working!AT28 -> 12xf + 21xt + 9xm | E4: =CONCATENATE(Working!A53,")") -> 51) | F4: =Working!AT52 -> 27gm + 9gc + 9gs
A5: =CONCATENATE(Working!A4,")") -> 2) | B5: =Working!AT4 -> 16in + 4iu - 2io | C5: =CONCATENATE(Working!A29,")") -> 27) | D5: =Working!AT29 -> -45rj - 10rp - 20rm | E5: =CONCATENATE(Working!A54,")") -> 52) | F5: =Working!AT53 -> -40wx + 10wy + 20wa
A6: =CONCATENATE(Working!A5,")") -> 3) | B6: =Working!AT5 -> 63ta + 27tq + 63td | C6: =CONCATENATE(Working!A30,")") -> 28) | D6: =Working!AT30 -> 24sh + 56sw - 8sc | E6: =CONCATENATE(Working!A55,")") -> 53) | F6: =Working!AT54 -> -28ti - 28to - 28tb
A7: =CONCATENATE(Working!A6,")") -> 4) | B7: =Working!AT6 -> 8xp - 8xk - 16xb | C7: =CONCATENATE(Working!A31,")") -> 29) | D7: =Working!AT31 -> 36yo - 42yb - 12yf | E7: =CONCATENATE(Working!A56,")") -> 54) | F7: =Working!AT55 -> -48fj + 24fg - 8fh
A8: =CONCATENATE(Working!A7,")") -> 5) | B8: =Working!AT7 -> 54ip - 63ib + 18ir | C8: =CONCATENATE(Working!A32,")") -> 30) | D8: =Working!AT32 -> -16gf + 24gd + 56gc | E8: =CONCATENATE(Working!A57,")") -> 55) | F8: =Working!AT56 -> 9qm + 63qv + 9qw
A9: =CONCATENATE(Working!A8,")") -> 6) | B9: =Working!AT8 -> -7go - 14gc + 21gn | C9: =CONCATENATE(Working!A33,")") -> 31) | D9: =Working!AT33 -> 72oc - 40ou + 32of | E9: =CONCATENATE(Working!A58,")") -> 56) | F9: =Working!AT57 -> 9xk - xt + 5xf
A10: =CONCATENATE(Working!A9,")") -> 7) | B10: =Working!AT9 -> 5my - 30mw - 20mi | C10: =CONCATENATE(Working!A34,")") -> 32) | D10: =Working!AT34 -> -12qd + 6qe + 9qk | E10: =CONCATENATE(Working!A59,")") -> 57) | F10: =Working!AT58 -> 4xi + 8xc - 14xm
A11: =CONCATENATE(Working!A10,")") -> 8) | B11: =Working!AT10 -> -45yj + 15yx - 15yb | C11: =CONCATENATE(Working!A35,")") -> 33) | D11: =Working!AT35 -> -2xm - 6xo + 12xs | E11: =CONCATENATE(Working!A60,")") -> 58) | F11: =Working!AT59 -> -18ef - 15ef - 12eb
A12: =CONCATENATE(Working!A11,")") -> 9) | B12: =Working!AT11 -> 5km + 35kf + 5kr | C12: =CONCATENATE(Working!A36,")") -> 34) | D12: =Working!AT36 -> 28qe - 12qc + 12qb | E12: =CONCATENATE(Working!A61,")") -> 59) | F12: =Working!AT60 -> -30yr + 30yq - 42ym
A13: =CONCATENATE(Working!A12,")") -> 10) | B13: =Working!AT12 -> -45qe + 15qu + 25qk | C13: =CONCATENATE(Working!A37,")") -> 35) | D13: =Working!AT37 -> -35sr - 14sv + 14sg | E13: =CONCATENATE(Working!A62,")") -> 60) | F13: =Working!AT61 -> 24ue + 18ui - 15uf
A14: =CONCATENATE(Working!A13,")") -> 11) | B14: =Working!AT13 -> -24yi - 36yx - 42yj | C14: =CONCATENATE(Working!A38,")") -> 36) | D14: =Working!AT38 -> 36ra - 4rh - 4rm | E14: =CONCATENATE(Working!A63,")") -> 61) | F14: =Working!AT62 -> 49mp - 35mv - 7me
A15: =CONCATENATE(Working!A14,")") -> 12) | B15: =Working!AT14 -> -28iq + 7ij - 21im | C15: =CONCATENATE(Working!A39,")") -> 37) | D15: =Working!AT39 -> -24ra + 36re + 36rv | E15: =CONCATENATE(Working!A64,")") -> 62) | F15: =Working!AT63 -> 6ov + 9ow - 9om
A16: =CONCATENATE(Working!A15,")") -> 13) | B16: =Working!AT15 -> -6kl + 4kn - 14kj | C16: =CONCATENATE(Working!A40,")") -> 38) | D16: =Working!AT40 -> 42ng - 24na + 30nm | E16: =CONCATENATE(Working!A65,")") -> 63) | F16: =Working!AT64 -> 20pd - 15pj - 15pt
A17: =CONCATENATE(Working!A16,")") -> 14) | B17: =Working!AT16 -> 6hi - 12hn - 6hv | C17: =CONCATENATE(Working!A41,")") -> 39) | D17: =Working!AT41 -> -12cv - 12cn - 6cg | E17: =CONCATENATE(Working!A66,")") -> 64) | F17: =Working!AT65 -> -4hr - 2hx - 2hh
A18: =CONCATENATE(Working!A17,")") -> 15) | B18: =Working!AT17 -> 21yr + 7yp - 35yk | C18: =CONCATENATE(Working!A42,")") -> 40) | D18: =Working!AT42 -> -5ck - 30cj - 20cc | E18: =CONCATENATE(Working!A67,")") -> 65) | F18: =Working!AT66 -> 4is + 8im + 8iq
A19: =CONCATENATE(Working!A18,")") -> 16) | B19: =Working!AT18 -> 27fq - 45fn - 45fg | C19: =CONCATENATE(Working!A43,")") -> 41) | D19: =Working!AT43 -> 15fp - 3fd - 12fn | E19: =CONCATENATE(Working!A68,")") -> 66) | F19: =Working!AT67 -> -27ln + 6lr + 12le
A20: =CONCATENATE(Working!A19,")") -> 17) | B20: =Working!AT19 -> -12pe + 6px + 6pi | C20: =CONCATENATE(Working!A44,")") -> 42) | D20: =Working!AT44 -> 56vc - 28vx + 35vw | E20: =CONCATENATE(Working!A69,")") -> 67) | F20: =Working!AT68 -> -15cp + 15cq - 15cm
A21: =CONCATENATE(Working!A20,")") -> 18) | B21: =Working!AT20 -> 42eo + 7en + 7eg | C21: =CONCATENATE(Working!A45,")") -> 43) | D21: =Working!AT45 -> 35ig - 35ij + 20id | E21: =CONCATENATE(Working!A70,")") -> 68) | F21: =Working!AT69 -> -32nm - 40nu - 48nd
A22: =CONCATENATE(Working!A21,")") -> 19) | B22: =Working!AT21 -> -18ym - 36yk - 42yv | C22: =CONCATENATE(Working!A46,")") -> 44) | D22: =Working!AT46 -> -12za - 15zx - 15ze | E22: =CONCATENATE(Working!A71,")") -> 69) | F22: =Working!AT70 -> 7jo - 14jt - 28ju
A23: =CONCATENATE(Working!A22,")") -> 20) | B23: =Working!AT22 -> -36vi + 12vw + 24vo | C23: =CONCATENATE(Working!A47,")") -> 45) | D23: =Working!AT47 -> 42zn + 30zx - 42zm | E23: =CONCATENATE(Working!A72,")") -> 70) | F23: =Working!AT71 -> -18qu + 21qb - 12qe
A24: =CONCATENATE(Working!A23,")") -> 21) | B24: =Working!AT23 -> 9wk + 45wd + 36wb | C24: =CONCATENATE(Working!A48,")") -> 46) | D24: =Working!AT48 -> -24xq - 56xm + 40xn | E24: =CONCATENATE(Working!A73,")") -> 71) | F24: =Working!AT72 -> -18mv + 12mf + 4md
A25: =CONCATENATE(Working!A24,")") -> 22) | B25: =Working!AT24 -> -36tu - 9tw + 63tf | C25: =CONCATENATE(Working!A49,")") -> 47) | D25: =Working!AT49 -> 16ro + 16rg - 16rk | E25: =CONCATENATE(Working!A74,")") -> 72) | F25: =Working!AT73 -> -5to - 15ti - 5tw
A26: =CONCATENATE(Working!A25,")") -> 23) | B26: =Working!AT25 -> 4dg + 4du + 12da | C26: =CONCATENATE(Working!A50,")") -> 48) | D26: =Working!AT50 -> 12sn - 42so + 36su | E26: =CONCATENATE(Working!A75,")") -> 73) | F26: =Working!AT74 -> -24lk - 40ln - 16lc
A27: =CONCATENATE(Working!A26,")") -> 24) | B27: =Working!AT26 -> 32ly - 8lq - 24la | C27: =CONCATENATE(Working!A51,")") -> 49) | D27: =Working!AT51 -> -20qy + 28qr - 8qp | E27: =CONCATENATE(Working!A76,")") -> 74) | F27: =Working!AT75 -> 72ef - 54em - 9ea
A28: =CONCATENATE(Working!A27,")") -> 25) | B28: =Working!AT27 -> -36jy - 6jm + 12ju | C28: =CONCATENATE(Working!A52,")") -> 50) | D28: =Working!AT52 -> 27gm + 9gc + 9gs | E28: =CONCATENATE(Working!A77,")") -> 75) | F28: =Working!AT76 -> -16ex + 8ea + 2ew

Sheet Answers
D1: FACTORISATION
D2: Answers | F2: =CONCATENATE("Worksheet ",Working!D1,Working!B1) -> Worksheet DP-837
A4: =CONCATENATE(Working!A3,")") -> 1) | B4: =Working!AS3 -> 8g(2d + 4p - 3b) | C4: =CONCATENATE(Working!A28,")") -> 26) | D4: =Working!AS28 -> 3x(4f + 7t + 3m) | E4: =CONCATENATE(Working!A53,")") -> 51) | F4: =Working!AS52 -> 9g(3m + c + s)
A5: =CONCATENATE(Working!A4,")") -> 2) | B5: =Working!AS4 -> 2i(8n + 2u - o) | C5: =CONCATENATE(Working!A29,")") -> 27) | D5: =Working!AS29 -> 5r(9j - 2p - 4m) | E5: =CONCATENATE(Working!A54,")") -> 52) | F5: =Working!AS53 -> -5w(8x - 2y - 4a)
A6: =CONCATENATE(Working!A5,")") -> 3) | B6: =Working!AS5 -> 9t(7a + 3q + 7d) | C6: =CONCATENATE(Working!A30,")") -> 28) | D6: =Working!AS30 -> -8s(3h - 7w + c) | E6: =CONCATENATE(Working!A55,")") -> 53) | F6: =Working!AS54 -> 4t(7i - 7o - 7b)
A7: =CONCATENATE(Working!A6,")") -> 4) | B7: =Working!AS6 -> 4x(2p - 2k - 4b) | C7: =CONCATENATE(Working!A31,")") -> 29) | D7: =Working!AS31 -> -6y(6o + 7b + 2f) | E7: =CONCATENATE(Working!A56,")") -> 54) | F7: =Working!AS55 -> 8f(6j + 3g - h)
A8: =CONCATENATE(Working!A7,")") -> 5) | B8: =Working!AS7 -> 9i(6p - 7b + 2r) | C8: =CONCATENATE(Working!A32,")") -> 30) | D8: =Working!AS32 -> -8g(2f - 3d - 7c) | E8: =CONCATENATE(Working!A57,")") -> 55) | F8: =Working!AS56 -> -9q(m - 7v - w)
A9: =CONCATENATE(Working!A8,")") -> 6) | B9: =Working!AS8 -> 7g(o - 2c + 3n) | C9: =CONCATENATE(Working!A33,")") -> 31) | D9: =Working!AS33 -> -8o(9c + 5u - 4f) | E9: =CONCATENATE(Working!A58,")") -> 56) | F9: =Working!AS57 -> -x(9k + t - 5f)
A10: =CONCATENATE(Working!A9,")") -> 7) | B10: =Working!AS9 -> 5m(y - 6w - 4i) | C10: =CONCATENATE(Working!A34,")") -> 32) | D10: =Working!AS34 -> 3q(4d + 2e + 3k) | E10: =CONCATENATE(Working!A59,")") -> 57) | F10: =Working!AS58 -> -2x(2i - 4c + 7m)
A11: =CONCATENATE(Working!A10,")") -> 8) | B11: =Working!AS10 -> 5y(9j + 3x - 3b) | C11: =CONCATENATE(Working!A35,")") -> 33) | D11: =Working!AS35 -> -2x(m + 3o - 6s) | E11: =CONCATENATE(Working!A60,")") -> 58) | F11: =Working!AS59 -> 3e(6f - 5f - 4b)
A12: =CONCATENATE(Working!A11,")") -> 9) | B12: =Working!AS11 -> 5k(m + 7f + r) | C12: =CONCATENATE(Working!A36,")") -> 34) | D12: =Working!AS36 -> 4q(7e - 3c + 3b) | E12: =CONCATENATE(Working!A61,")") -> 59) | F12: =Working!AS60 -> -6y(5r - 5q + 7m)
A13: =CONCATENATE(Working!A12,")") -> 10) | B13: =Working!AS12 -> 5q(9e + 3u + 5k) | C13: =CONCATENATE(Working!A37,")") -> 35) | D13: =Working!AS37 -> -7s(5r + 2v - 2g) | E13: =CONCATENATE(Working!A62,")") -> 60) | F13: =Working!AS61 -> -3u(8e - 6i + 5f)
A14: =CONCATENATE(Working!A13,")") -> 11) | B14: =Working!AS13 -> -6y(4i + 6x + 7j) | C14: =CONCATENATE(Working!A38,")") -> 36) | D14: =Working!AS38 -> -4r(9a + h + m) | E14: =CONCATENATE(Working!A63,")") -> 61) | F14: =Working!AS62 -> -7m(7p + 5v + e)
A15: =CONCATENATE(Working!A14,")") -> 12) | B15: =Working!AS14 -> -7i(4q - j + 3m) | C15: =CONCATENATE(Working!A39,")") -> 37) | D15: =Working!AS39 -> 6r(4a + 6e + 6v) | E15: =CONCATENATE(Working!A64,")") -> 62) | F15: =Working!AS63 -> -3o(2v - 3w + 3m)
A16: =CONCATENATE(Working!A15,")") -> 13) | B16: =Working!AS15 -> -2k(3l - 2n + 7j) | C16: =CONCATENATE(Working!A40,")") -> 38) | D16: =Working!AS40 -> 6n(7g - 4a + 5m) | E16: =CONCATENATE(Working!A65,")") -> 63) | F16: =Working!AS64 -> -5p(4d + 3j + 3t)
A17: =CONCATENATE(Working!A16,")") -> 14) | B17: =Working!AS16 -> -3h(2i + 4n + 2v) | C17: =CONCATENATE(Working!A41,")") -> 39) | D17: =Working!AS41 -> -3c(4v + 4n + 2g) | E17: =CONCATENATE(Working!A66,")") -> 64) | F17: =Working!AS65 -> h(4r - 2x - 2h)
A18: =CONCATENATE(Working!A17,")") -> 15) | B18: =Working!AS17 -> -7y(3r - p + 5k) | C18: =CONCATENATE(Working!A42,")") -> 40) | D18: =Working!AS42 -> -5c(k + 6j + 4c) | E18: =CONCATENATE(Working!A67,")") -> 65) | F18: =Working!AS66 -> -4i(s - 2m - 2q)
A19: =CONCATENATE(Working!A18,")") -> 16) | B19: =Working!AS18 -> -9f(3q + 5n + 5g) | C19: =CONCATENATE(Working!A43,")") -> 41) | D19: =Working!AS43 -> 3f(5p - d - 4n) | E19: =CONCATENATE(Working!A68,")") -> 66) | F19: =Working!AS67 -> 3l(9n + 2r + 4e)
A20: =CONCATENATE(Working!A19,")") -> 17) | B20: =Working!AS19 -> -6p(2e - x - i) | C20: =CONCATENATE(Working!A44,")") -> 42) | D20: =Working!AS44 -> -7v(8c + 4x - 5w) | E20: =CONCATENATE(Working!A69,")") -> 67) | F20: =Working!AS68 -> 5c(3p + 3q - 3m)
A21: =CONCATENATE(Working!A20,")") -> 18) | B21: =Working!AS20 -> -7e(6o - n - g) | C21: =CONCATENATE(Working!A45,")") -> 43) | D21: =Working!AS45 -> -5i(7g + 7j - 4d) | E21: =CONCATENATE(Working!A70,")") -> 68) | F21: =Working!AS69 -> -8n(4m + 5u + 6d)
A22: =CONCATENATE(Working!A21,")") -> 19) | B22: =Working!AS21 -> -6y(3m + 6k + 7v) | C22: =CONCATENATE(Working!A46,")") -> 44) | D22: =Working!AS46 -> -3z(4a + 5x + 5e) | E22: =CONCATENATE(Working!A71,")") -> 69) | F22: =Working!AS70 -> -7j(o + 2t + 4u)
A23: =CONCATENATE(Working!A22,")") -> 20) | B23: =Working!AS22 -> -4v(9i - 3w - 6o) | C23: =CONCATENATE(Working!A47,")") -> 45) | D23: =Working!AS47 -> 6z(7n + 5x - 7m) | E23: =CONCATENATE(Working!A72,")") -> 70) | F23: =Working!AS71 -> 3q(6u + 7b - 4e)
A24: =CONCATENATE(Working!A23,")") -> 21) | B24: =Working!AS23 -> -9w(k - 5d - 4b) | C24: =CONCATENATE(Working!A48,")") -> 46) | D24: =Working!AS48 -> -8x(3q + 7m - 5n) | E24: =CONCATENATE(Working!A73,")") -> 71) | F24: =Working!AS72 -> 2m(9v + 6f + 2d)
A25: =CONCATENATE(Working!A24,")") -> 22) | B25: =Working!AS24 -> -9t(4u + w - 7f) | C25: =CONCATENATE(Working!A49,")") -> 47) | D25: =Working!AS49 -> -4r(4o - 4g + 4k) | E25: =CONCATENATE(Working!A74,")") -> 72) | F25: =Working!AS73 -> -5t(o + 3i + w)
A26: =CONCATENATE(Working!A25,")") -> 23) | B26: =Working!AS25 -> 2d(2g + 2u + 6a) | C26: =CONCATENATE(Working!A50,")") -> 48) | D26: =Working!AS50 -> -6s(2n + 7o - 6u) | E26: =CONCATENATE(Working!A75,")") -> 73) | F26: =Working!AS74 -> 8l(3k - 5n - 2c)
A27: =CONCATENATE(Working!A26,")") -> 24) | B27: =Working!AS26 -> -4l(8y + 2q + 6a) | C27: =CONCATENATE(Working!A51,")") -> 49) | D27: =Working!AS51 -> 4q(5y + 7r - 2p) | E27: =CONCATENATE(Working!A76,")") -> 74) | F27: =Working!AS75 -> -9e(8f + 6m + a)
A28: =CONCATENATE(Working!A27,")") -> 25) | B28: =Working!AS27 -> 6j(6y - m + 2u) | C28: =CONCATENATE(Working!A52,")") -> 50) | D28: =Working!AS52 -> 9g(3m + c + s) | E28: =CONCATENATE(Working!A77,")") -> 75) | F28: =Working!AS76 -> -2e(8x - 4a - w)

Sheet Working (hidden)
A1: =INT(900*RAND()+100) -> 837 | B1: =TEXT(1,A1) -> 837 | D1: DP- | E1: 0 | H1: aX(bY+cZ+dW) = fA+gB=hC | L1: =IF(OR(J3=C3,J3=G3),J3+1,J3) -> 112
B2: ASSCII | D2: X | E2: ASSCII | G2: Compare with X | H2: Y | I2: ASSCII | K2: Compare with Y | L2: Z | M2: ASSCII | O2: Compare with Y & Z | P2: W | T2: a | X2: b | AB2: c | AG2: d | AJ2: f | AM2: g | AP2: h
A3: 1 | B3: =RANDBETWEEN(97,122) -> 103 | C3: =IF(B3=108,B3+1,B3) -> 103 | D3: =CHAR(B3) -> g | E3: =RANDBETWEEN(97,121) -> 100 | F3: =IF(E3=108,E3+1,E3) -> 100 | G3: =IF(F3=C3,F3+1,F3) -> 100 | H3: =CHAR(G3) -> d | I3: =RANDBETWEEN(97,120) -> 112 | J3: =IF(I3=108,I3+1,I3) -> 112 | K3: =IF(OR(J3=C3,J3=G3),J3+1,J3) -> 112 | L3: =CHAR(K3) -> p | M3: =RANDBETWEEN(97,119) -> 98 | N3: =IF(M3=108,M3+1,M3) -> 98 | O3: =IF(OR(N3=G3,N3=K3),N3+1,N3) -> 98 | P3: =CHAR(O3) -> b | Q3: =INT(8*RAND()+2) -> 8 | R3: 0 | S3: =IF(R3=0,"","-") ->  | T3: =IF(Q3=1,"",TEXT(Q3,Q3)) -> 8 | U3: =INT(9*RAND()+1) -> 2 | V3: 0 | W3: =IF(V3=0,"","-") ->  | X3: =IF(U3=1,"",TEXT(U3,U3)) -> 2 | Y3: =INT(7*RAND()+1) -> 4 | Z3: 0 | AA3: =IF(Z3=0," + "," - ") -> + | AB3: =IF(Y3=1,"",TEXT(Y3,Y3)) -> 4 | AC3: =INT(7*RAND()+1) -> 3 | AD3: =AC3 -> 3 | AE3: 1 | AF3: =IF(AE3=0," + "," - ") -> - | AG3: =IF(AC3=1,"",TEXT(AC3,AC3)) -> 3 | AI3: =Q3*U3 -> 16 | AJ3: =IF(AI3=1,"",TEXT($E$1,AI3)) -> 16 | AK3: =IF((R3+V3)=1,"-"," ") ->  | AL3: =Q3*Y3 -> 32 | AM3: =IF(AL3=1,"",TEXT($E$1,AL3)) -> 32 | AN3: =IF((R3+Z3)=1," - "," + ") -> + | AO3: =Q3*AC3 -> 24 | AP3: =IF(AO3=1,"",TEXT($E$1,AO3)) -> 24 | AQ3: =IF((R3+AE3)=1," - "," + ") -> - | AS3: =CONCATENATE(S3,T3,D3,"(",X3,H3,AA3,AB3,L3,AF3,AG3,P3,")") -> 8g(2d + 4p - 3b) | AT3: =CONCATENATE(AK3,AJ3,D3,H3,AN3,AM3,D3,L3,AQ3,AP3,D3,P3) -> 16gd + 32gp - 24gb
A4: 2 | B4: =RANDBETWEEN(97,122) -> 105 | C4: =IF(B4=108,B4+1,B4) -> 105 | D4: =CHAR(B4) -> i | E4: =RANDBETWEEN(97,121) -> 110 | F4: =IF(E4=108,E4+1,E4) -> 110 | G4: =IF(F4=C4,F4+1,F4) -> 110 | H4: =CHAR(G4) -> n | I4: =RANDBETWEEN(97,120) -> 117 | J4: =IF(I4=108,I4+1,I4) -> 117 | K4: =IF(OR(J4=C4,J4=G4),J4+1,J4) -> 117 | L4: =CHAR(K4) -> u | M4: =RANDBETWEEN(97,119) -> 110 | N4: =IF(M4=108,M4+1,M4) -> 110 | O4: =IF(OR(N4=G4,N4=K4),N4+1,N4) -> 111 | P4: =CHAR(O4) -> o | Q4: =INT(8*RAND()+2) -> 2 | R4: 0 | T4: =IF(Q4=1,"",TEXT(Q4,Q4)) -> 2 | U4: 8 | V4: 0 | W4: =IF(V4=0,"","-") ->  | X4: =IF(U4=1,"",TEXT(U4,U4)) -> 8 | Y4: =INT(7*RAND()+1) -> 2 | Z4: 0 | AA4: =IF(Z4=0," + "," - ") -> + | AB4: =IF(Y4=1,"",TEXT(Y4,Y4)) -> 2 | AC4: =INT(7*RAND()+1) -> 1 | AD4: =AC4 -> 1 | AE4: 1 | AF4: =IF(AE4=0," + "," - ") -> - | AG4: =IF(AC4=1,"",TEXT(AC4,AC4)) ->  | AI4: 16 | AJ4: =IF(AI4=1,"",TEXT($E$1,AI4)) -> 16 | AK4: =IF((R4+V4)=1,"-"," ") ->  | AL4: =Q4*Y4 -> 4 | AM4: =IF(AL4=1,"",TEXT($E$1,AL4)) -> 4 | AN4: =IF((R4+Z4)=1," - "," + ") -> + | AO4: =Q4*AC4 -> 2 | AP4: =IF(AO4=1,"",TEXT($E$1,AO4)) -> 2 | AQ4: =IF((R4+AE4)=1," - "," + ") -> - | AS4: =CONCATENATE(S4,T4,D4,"(",X4,H4,AA4,AB4,L4,AF4,AG4,P4,")") -> 2i(8n + 2u - o) | AT4: =CONCATENATE(AK4,AJ4,D4,H4,AN4,AM4,D4,L4,AQ4,AP4,D4,P4) -> 16in + 4iu - 2io
A5: 3 | B5: 116 | C5: 116 | D5: t | E5: 97 | F5: 97 | G5: 97 | H5: a | I5: 113 | J5: 113 | K5: =IF(OR(J5=C5,J5=G5),J5+1,J5) -> 113 | L5: q | M5: 100 | N5: 100 | O5: =IF(OR(N5=G5,N5=K5),N5+1,N5) -> 100 | P5: d | Q5: 9 | R5: 0 | T5: 9 | U5: 7 | V5: 0 | X5: 7 | Y5: 3 | Z5: 0 | AA5: + | AB5: 3 | AC5: 7 | AD5: 7 | AE5: =INT(2*RAND()) -> 0 | AF5: + | AG5: 7 | AI5: 63 | AJ5: 63 | AL5: 27 | AM5: 27 | AN5: + | AO5: 63 | AP5: 63 | AQ5: + | AS5: =CONCATENATE(S5,T5,D5,"(",X5,H5,AA5,AB5,L5,AF5,AG5,P5,")") -> 9t(7a + 3q + 7d) | AT5: =CONCATENATE(AK5,AJ5,D5,H5,AN5,AM5,D5,L5,AQ5,AP5,D5,P5) -> 63ta + 27tq + 63td
A6: 4 | B6: 120 | C6: 120 | D6: x | E6: 112 | F6: 112 | G6: 112 | H6: p | I6: 107 | J6: 107 | K6: =IF(OR(J6=C6,J6=G6),J6+1,J6) -> 107 | L6: k | M6: 98 | N6: 98 | O6: =IF(OR(N6=G6,N6=K6),N6+1,N6) -> 98 | P6: b | Q6: 4 | R6: 0 | T6: 4 | U6: 2 | V6: 0 | X6: 2 | Y6: 2 | Z6: 1 | AA6: - | AB6: 2 | AC6: 4 | AD6: 4 | AE6: 1 | AF6: - | AG6: 4 | AI6: 8 | AJ6: 8 | AL6: 8 | AM6: 8 | AN6: - | AO6: 16 | AP6: 16 | AQ6: - | AS6: =CONCATENATE(S6,T6,D6,"(",X6,H6,AA6,AB6,L6,AF6,AG6,P6,")") -> 4x(2p - 2k - 4b) | AT6: =CONCATENATE(AK6,AJ6,D6,H6,AN6,AM6,D6,L6,AQ6,AP6,D6,P6) -> 8xp - 8xk - 16xb
A7: 5 | B7: 105 | C7: 105 | D7: i | E7: 112 | F7: 112 | G7: 112 | H7: p | I7: 98 | J7: 98 | K7: =IF(OR(J7=C7,J7=G7),J7+1,J7) -> 98 | L7: b | M7: 114 | N7: 114 | O7: =IF(OR(N7=G7,N7=K7),N7+1,N7) -> 114 | P7: r | Q7: 9 | R7: 0 | T7: 9 | U7: 6 | V7: 0 | X7: 6 | Y7: 7 | Z7: 1 | AA7: - | AB7: 7 | AC7: 2 | AD7: 2 | AE7: 0 | AF7: + | AG7: 2 | AI7: 54 | AJ7: 54 | AL7: 63 | AM7: 63 | AN7: - | AO7: 18 | AP7: 18 | AQ7: + | AS7: =CONCATENATE(S7,T7,D7,"(",X7,H7,AA7,AB7,L7,AF7,AG7,P7,")") -> 9i(6p - 7b + 2r) | AT7: =CONCATENATE(AK7,AJ7,D7,H7,AN7,AM7,D7,L7,AQ7,AP7,D7,P7) -> 54ip - 63ib + 18ir
A8: 6 | B8: 103 | C8: 103 | D8: g | E8: 111 | F8: 111 | G8: 111 | H8: o | I8: 99 | J8: 99 | K8: =IF(OR(J8=C8,J8=G8),J8+1,J8) -> 99 | L8: c | M8: 110 | N8: 110 | O8: =IF(OR(N8=G8,N8=K8),N8+1,N8) -> 110 | P8: n | Q8: 7 | R8: 0 | T8: 7 | U8: 1 | V8: =INT(2*RAND()) -> 1 | W8: - | Y8: 2 | Z8: =INT(2*RAND()) -> 1 | AA8: - | AB8: 2 | AC8: 3 | AD8: 3 | AE8: 0 | AF8: + | AG8: 3 | AI8: 7 | AJ8: 7 | AK8: - | AL8: 14 | AM8: 14 | AN8: - | AO8: 21 | AP8: 21 | AQ8: + | AS8: =CONCATENATE(S8,T8,D8,"(",X8,H8,AA8,AB8,L8,AF8,AG8,P8,")") -> 7g(o - 2c + 3n) | AT8: =CONCATENATE(AK8,AJ8,D8,H8,AN8,AM8,D8,L8,AQ8,AP8,D8,P8) -> -7go - 14gc + 21gn
A9: 7 | B9: 109 | C9: 109 | D9: m | E9: 121 | F9: 121 | G9: 121 | H9: y | I9: 119 | J9: 119 | K9: =IF(OR(J9=C9,J9=G9),J9+1,J9) -> 119 | L9: w | M9: 105 | N9: 105 | O9: =IF(OR(N9=G9,N9=K9),N9+1,N9) -> 105 | P9: i | Q9: 5 | R9: 0 | T9: 5 | U9: 1 | V9: 0 | Y9: 6 | Z9: 1 | AA9: - | AB9: 6 | AC9: 4 | AD9: 4 | AE9: 1 | AF9: - | AG9: 4 | AI9: 5 | AJ9: 5 | AL9: 30 | AM9: 30 | AN9: - | AO9: 20 | AP9: 20 | AQ9: - | AS9: =CONCATENATE(S9,T9,D9,"(",X9,H9,AA9,AB9,L9,AF9,AG9,P9,")") -> 5m(y - 6w - 4i) | AT9: =CONCATENATE(AK9,AJ9,D9,H9,AN9,AM9,D9,L9,AQ9,AP9,D9,P9) -> 5my - 30mw - 20mi
A10: 8 | B10: 121 | C10: 121 | D10: y | E10: 106 | F10: 106 | G10: 106 | H10: j | I10: 120 | J10: 120 | K10: =IF(OR(J10=C10,J10=G10),J10+1,J10) -> 120 | L10: x | M10: 98 | N10: 98 | O10: =IF(OR(N10=G10,N10=K10),N10+1,N10) -> 98 | P10: b | Q10: 5 | R10: 0 | T10: 5 | U10: 9 | V10: 1 | W10: - | X10: 9 | Y10: 3 | Z10: 0 | AA10: + | AB10: 3 | AC10: 3 | AD10: 3 | AE10: 1 | AF10: - | AG10: 3 | AI10: 45 | AJ10: 45 | AK10: - | AL10: 15 | AM10: 15 | AN10: + | AO10: 15 | AP10: 15 | AQ10: - | AS10: =CONCATENATE(S10,T10,D10,"(",X10,H10,AA10,AB10,L10,AF10,AG10,P10,")") -> 5y(9j + 3x - 3b) | AT10: =CONCATENATE(AK10,AJ10,D10,H10,AN10,AM10,D10,L10,AQ10,AP10,D10,P10) -> -45yj + 15yx - 15yb
A11: 9 | B11: 107 | C11: 107 | D11: k | E11: 109 | F11: 109 | G11: 109 | H11: m | I11: 102 | J11: 102 | K11: =IF(OR(J11=C11,J11=G11),J11+1,J11) -> 102 | L11: f | M11: 114 | N11: 114 | O11: =IF(OR(N11=G11,N11=K11),N11+1,N11) -> 114 | P11: r | Q11: 5 | R11: 0 | T11: 5 | U11: 1 | V11: 0 | Y11: 7 | Z11: 0 | AA11: + | AB11: 7 | AC11: 1 | AD11: 1 | AE11: 0 | AF11: + | AI11: 5 | AJ11: 5 | AL11: 35 | AM11: 35 | AN11: + | AO11: 5 | AP11: 5 | AQ11: + | AS11: =CONCATENATE(S11,T11,D11,"(",X11,H11,AA11,AB11,L11,AF11,AG11,P11,")") -> 5k(m + 7f + r) | AT11: =CONCATENATE(AK11,AJ11,D11,H11,AN11,AM11,D11,L11,AQ11,AP11,D11,P11) -> 5km + 35kf + 5kr
A12: 10 | B12: 113 | C12: 113 | D12: q | E12: 101 | F12: 101 | G12: 101 | H12: e | I12: 117 | J12: 117 | K12: =IF(OR(J12=C12,J12=G12),J12+1,J12) -> 117 | L12: u | M12: 107 | N12: 107 | O12: =IF(OR(N12=G12,N12=K12),N12+1,N12) -> 107 | P12: k | Q12: 5 | R12: 0 | T12: 5 | U12: 9 | V12: 1 | W12: - | X12: 9 | Y12: 3 | Z12: 0 | AA12: + | AB12: 3 | AC12: 5 | AD12: 5 | AE12: 0 | AF12: + | AG12: 5 | AI12: 45 | AJ12: 45 | AK12: - | AL12: 15 | AM12: 15 | AN12: + | AO12: 25 | AP12: 25 | AQ12: + | AS12: =CONCATENATE(S12,T12,D12,"(",X12,H12,AA12,AB12,L12,AF12,AG12,P12,")") -> 5q(9e + 3u + 5k) | AT12: =CONCATENATE(AK12,AJ12,D12,H12,AN12,AM12,D12,L12,AQ12,AP12,D12,P12) -> -45qe + 15qu + 25qk
A13: 11 | B13: 121 | C13: 121 | D13: y | E13: 105 | F13: 105 | G13: 105 | H13: i | I13: 120 | J13: 120 | K13: =IF(OR(J13=C13,J13=G13),J13+1,J13) -> 120 | L13: x | M13: 106 | N13: 106 | O13: =IF(OR(N13=G13,N13=K13),N13+1,N13) -> 106 | P13: j | Q13: 6 | R13: 1 | S13: - | T13: 6 | U13: 4 | V13: 0 | X13: 4 | Y13: 6 | Z13: 0 | AA13: + | AB13: 6 | AC13: 7 | AD13: 7 | AE13: 0 | AF13: + | AG13: 7 | AI13: 24 | AJ13: 24 | AK13: - | AL13: 36 | AM13: 36 | AN13: - | AO13: 42 | AP13: 42 | AQ13: - | AS13: =CONCATENATE(S13,T13,D13,"(",X13,H13,AA13,AB13,L13,AF13,AG13,P13,")") -> -6y(4i + 6x + 7j) | AT13: =CONCATENATE(AK13,AJ13,D13,H13,AN13,AM13,D13,L13,AQ13,AP13,D13,P13) -> -24yi - 36yx - 42yj
A14: 12 | B14: 105 | C14: 105 | D14: i | E14: 113 | F14: 113 | G14: 113 | H14: q | I14: 106 | J14: 106 | K14: =IF(OR(J14=C14,J14=G14),J14+1,J14) -> 106 | L14: j | M14: 109 | N14: 109 | O14: =IF(OR(N14=G14,N14=K14),N14+1,N14) -> 109 | P14: m | Q14: 7 | R14: 1 | S14: - | T14: 7 | U14: 4 | V14: 0 | X14: 4 | Y14: 1 | Z14: 1 | AA14: - | AC14: 3 | AD14: 3 | AE14: 0 | AF14: + | AG14: 3 | AI14: 28 | AJ14: 28 | AK14: - | AL14: 7 | AM14: 7 | AN14: + | AO14: 21 | AP14: 21 | AQ14: - | AS14: =CONCATENATE(S14,T14,D14,"(",X14,H14,AA14,AB14,L14,AF14,AG14,P14,")") -> -7i(4q - j + 3m) | AT14: =CONCATENATE(AK14,AJ14,D14,H14,AN14,AM14,D14,L14,AQ14,AP14,D14,P14) -> -28iq + 7ij - 21im
A15: 13 | B15: 107 | C15: 107 | D15: k | E15: 107 | F15: 107 | G15: 108 | H15: l | I15: 110 | J15: 110 | K15: =IF(OR(J15=C15,J15=G15),J15+1,J15) -> 110 | L15: n | M15: 106 | N15: 106 | O15: =IF(OR(N15=G15,N15=K15),N15+1,N15) -> 106 | P15: j | Q15: 2 | R15: 1 | S15: - | T15: 2 | U15: 3 | V15: 0 | X15: 3 | Y15: 2 | Z15: 1 | AA15: - | AB15: 2 | AC15: 7 | AD15: 7 | AE15: 0 | AF15: + | AG15: 7 | AI15: 6 | AJ15: 6 | AK15: - | AL15: 4 | AM15: 4 | AN15: + | AO15: 14 | AP15: 14 | AQ15: - | AS15: =CONCATENATE(S15,T15,D15,"(",X15,H15,AA15,AB15,L15,AF15,AG15,P15,")") -> -2k(3l - 2n + 7j) | AT15: =CONCATENATE(AK15,AJ15,D15,H15,AN15,AM15,D15,L15,AQ15,AP15,D15,P15) -> -6kl + 4kn - 14kj
A16: 14 | B16: 104 | C16: 104 | D16: h | E16: 104 | F16: 104 | G16: 105 | H16: i | I16: 110 | J16: 110 | K16: =IF(OR(J16=C16,J16=G16),J16+1,J16) -> 110 | L16: n | M16: 118 | N16: 118 | O16: =IF(OR(N16=G16,N16=K16),N16+1,N16) -> 118 | P16: v | Q16: 3 | R16: 1 | S16: - | T16: 3 | U16: 2 | V16: 1 | W16: - | X16: 2 | Y16: 4 | Z16: 0 | AA16: + | AB16: 4 | AC16: 2 | AD16: 2 | AE16: 0 | AF16: + | AG16: 2 | AI16: 6 | AJ16: 6 | AL16: 12 | AM16: 12 | AN16: - | AO16: 6 | AP16: 6 | AQ16: - | AS16: =CONCATENATE(S16,T16,D16,"(",X16,H16,AA16,AB16,L16,AF16,AG16,P16,")") -> -3h(2i + 4n + 2v) | AT16: =CONCATENATE(AK16,AJ16,D16,H16,AN16,AM16,D16,L16,AQ16,AP16,D16,P16) -> 6hi - 12hn - 6hv
A17: 15 | B17: 121 | C17: 121 | D17: y | E17: 114 | F17: 114 | G17: 114 | H17: r | I17: 112 | J17: 112 | K17: =IF(OR(J17=C17,J17=G17),J17+1,J17) -> 112 | L17: p | M17: 107 | N17: 107 | O17: =IF(OR(N17=G17,N17=K17),N17+1,N17) -> 107 | P17: k | Q17: 7 | R17: 1 | S17: - | T17: 7 | U17: 3 | V17: 1 | W17: - | X17: 3 | Y17: 1 | Z17: 1 | AA17: - | AC17: 5 | AD17: 5 | AE17: 0 | AF17: + | AG17: 5 | AI17: 21 | AJ17: 21 | AL17: 7 | AM17: 7 | AN17: + | AO17: 35 | AP17: 35 | AQ17: - | AS17: =CONCATENATE(S17,T17,D17,"(",X17,H17,AA17,AB17,L17,AF17,AG17,P17,")") -> -7y(3r - p + 5k) | AT17: =CONCATENATE(AK17,AJ17,D17,H17,AN17,AM17,D17,L17,AQ17,AP17,D17,P17) -> 21yr + 7yp - 35yk
A18: 16 | B18: 102 | C18: 102 | D18: f | E18: 113 | F18: 113 | G18: 113 | H18: q | I18: 110 | J18: 110 | K18: =IF(OR(J18=C18,J18=G18),J18+1,J18) -> 110 | L18: n | M18: 103 | N18: 103 | O18: =IF(OR(N18=G18,N18=K18),N18+1,N18) -> 103 | P18: g | Q18: 9 | R18: 1 | S18: - | T18: 9 | U18: 3 | V18: 1 | W18: - | X18: 3 | Y18: 5 | Z18: 0 | AA18: + | AB18: 5 | AC18: 5 | AD18: 5 | AE18: 0 | AF18: + | AG18: 5 | AI18: 27 | AJ18: 27 | AL18: 45 | AM18: 45 | AN18: - | AO18: 45 | AP18: 45 | AQ18: - | AS18: =CONCATENATE(S18,T18,D18,"(",X18,H18,AA18,AB18,L18,AF18,AG18,P18,")") -> -9f(3q + 5n + 5g) | AT18: =CONCATENATE(AK18,AJ18,D18,H18,AN18,AM18,D18,L18,AQ18,AP18,D18,P18) -> 27fq - 45fn - 45fg
A19: 17 | B19: 112 | C19: 112 | D19: p | E19: 101 | F19: 101 | G19: 101 | H19: e | I19: 120 | J19: 120 | K19: =IF(OR(J19=C19,J19=G19),J19+1,J19) -> 120 | L19: x | M19: 105 | N19: 105 | O19: =IF(OR(N19=G19,N19=K19),N19+1,N19) -> 105 | P19: i | Q19: 6 | R19: 1 | S19: - | T19: 6 | U19: 2 | V19: 0 | X19: 2 | Y19: 1 | Z19: 1 | AA19: - | AC19: 1 | AD19: 1 | AE19: 1 | AF19: - | AI19: 12 | AJ19: 12 | AK19: - | AL19: 6 | AM19: 6 | AN19: + | AO19: 6 | AP19: 6 | AQ19: + | AS19: =CONCATENATE(S19,T19,D19,"(",X19,H19,AA19,AB19,L19,AF19,AG19,P19,")") -> -6p(2e - x - i) | AT19: =CONCATENATE(AK19,AJ19,D19,H19,AN19,AM19,D19,L19,AQ19,AP19,D19,P19) -> -12pe + 6px + 6pi
A20: 18 | B20: 101 | C20: 101 | D20: e | E20: 111 | F20: 111 | G20: 111 | H20: o | I20: 110 | J20: 110 | K20: =IF(OR(J20=C20,J20=G20),J20+1,J20) -> 110 | L20: n | M20: 103 | N20: 103 | O20: =IF(OR(N20=G20,N20=K20),N20+1,N20) -> 103 | P20: g | Q20: 7 | R20: 1 | S20: - | T20: 7 | U20: 6 | V20: 1 | W20: - | X20: 6 | Y20: 1 | Z20: 1 | AA20: - | AC20: 1 | AD20: 1 | AE20: 1 | AF20: - | AI20: 42 | AJ20: 42 | AL20: 7 | AM20: 7 | AN20: + | AO20: 7 | AP20: 7 | AQ20: + | AS20: =CONCATENATE(S20,T20,D20,"(",X20,H20,AA20,AB20,L20,AF20,AG20,P20,")") -> -7e(6o - n - g) | AT20: =CONCATENATE(AK20,AJ20,D20,H20,AN20,AM20,D20,L20,AQ20,AP20,D20,P20) -> 42eo + 7en + 7eg
A21: 19 | B21: 121 | C21: 121 | D21: y | E21: 109 | F21: 109 | G21: 109 | H21: m | I21: 107 | J21: 107 | K21: =IF(OR(J21=C21,J21=G21),J21+1,J21) -> 107 | L21: k | M21: 118 | N21: 118 | O21: =IF(OR(N21=G21,N21=K21),N21+1,N21) -> 118 | P21: v | Q21: 6 | R21: 1 | S21: - | T21: 6 | U21: 3 | V21: 0 | X21: 3 | Y21: 6 | Z21: 0 | AA21: + | AB21: 6 | AC21: 7 | AD21: 7 | AE21: 0 | AF21: + | AG21: 7 | AI21: 18 | AJ21: 18 | AK21: - | AL21: 36 | AM21: 36 | AN21: - | AO21: 42 | AP21: 42 | AQ21: - | AS21: =CONCATENATE(S21,T21,D21,"(",X21,H21,AA21,AB21,L21,AF21,AG21,P21,")") -> -6y(3m + 6k + 7v) | AT21: =CONCATENATE(AK21,AJ21,D21,H21,AN21,AM21,D21,L21,AQ21,AP21,D21,P21) -> -18ym - 36yk - 42yv
A22: 20 | B22: 118 | C22: 118 | D22: v | E22: 105 | F22: 105 | G22: 105 | H22: i | I22: 119 | J22: 119 | K22: =IF(OR(J22=C22,J22=G22),J22+1,J22) -> 119 | L22: w | M22: 111 | N22: 111 | O22: =IF(OR(N22=G22,N22=K22),N22+1,N22) -> 111 | P22: o | Q22: 4 | R22: 1 | S22: - | T22: 4 | U22: 9 | V22: 0 | X22: 9 | Y22: 3 | Z22: 1 | AA22: - | AB22: 3 | AC22: 6 | AD22: 6 | AE22: 1 | AF22: - | AG22: 6 | AI22: 36 | AJ22: 36 | AK22: - | AL22: 12 | AM22: 12 | AN22: + | AO22: 24 | AP22: 24 | AQ22: + | AS22: =CONCATENATE(S22,T22,D22,"(",X22,H22,AA22,AB22,L22,AF22,AG22,P22,")") -> -4v(9i - 3w - 6o) | AT22: =CONCATENATE(AK22,AJ22,D22,H22,AN22,AM22,D22,L22,AQ22,AP22,D22,P22) -> -36vi + 12vw + 24vo
A23: 21 | B23: 119 | C23: 119 | D23: w | E23: 107 | F23: 107 | G23: 107 | H23: k | I23: 100 | J23: 100 | K23: =IF(OR(J23=C23,J23=G23),J23+1,J23) -> 100 | L23: d | M23: 98 | N23: 98 | O23: =IF(OR(N23=G23,N23=K23),N23+1,N23) -> 98 | P23: b | Q23: 9 | R23: =INT(2*RAND()) -> 1 | S23: - | T23: 9 | U23: 1 | V23: 1 | W23: - | Y23: 5 | Z23: 1 | AA23: - | AB23: 5 | AC23: 4 | AD23: 4 | AE23: 1 | AF23: - | AG23: 4 | AI23: 9 | AJ23: 9 | AL23: 45 | AM23: 45 | AN23: + | AO23: 36 | AP23: 36 | AQ23: + | AS23: =CONCATENATE(S23,T23,D23,"(",X23,H23,AA23,AB23,L23,AF23,AG23,P23,")") -> -9w(k - 5d - 4b) | AT23: =CONCATENATE(AK23,AJ23,D23,H23,AN23,AM23,D23,L23,AQ23,AP23,D23,P23) -> 9wk + 45wd + 36wb
A24: 22 | B24: 116 | C24: 116 | D24: t | E24: 117 | F24: 117 | G24: 117 | H24: u | I24: 119 | J24: 119 | K24: =IF(OR(J24=C24,J24=G24),J24+1,J24) -> 119 | L24: w | M24: 102 | N24: 102 | O24: =IF(OR(N24=G24,N24=K24),N24+1,N24) -> 102 | P24: f | Q24: 9 | R24: 1 | S24: - | T24: 9 | U24: 4 | V24: 0 | X24: 4 | Y24: 1 | Z24: 0 | AA24: + | AC24: 7 | AD24: 7 | AE24: 1 | AF24: - | AG24: 7 | AI24: 36 | AJ24: 36 | AK24: - | AL24: 9 | AM24: 9 | AN24: - | AO24: 63 | AP24: 63 | AQ24: + | AS24: =CONCATENATE(S24,T24,D24,"(",X24,H24,AA24,AB24,L24,AF24,AG24,P24,")") -> -9t(4u + w - 7f) | AT24: =CONCATENATE(AK24,AJ24,D24,H24,AN24,AM24,D24,L24,AQ24,AP24,D24,P24) -> -36tu - 9tw + 63tf
A25: 23 | B25: 100 | C25: 100 | D25: d | E25: 103 | F25: 103 | G25: 103 | H25: g | I25: 117 | J25: 117 | K25: =IF(OR(J25=C25,J25=G25),J25+1,J25) -> 117 | L25: u | M25: 97 | N25: 97 | O25: =IF(OR(N25=G25,N25=K25),N25+1,N25) -> 97 | P25: a | Q25: 2 | R25: 0 | T25: 2 | U25: 2 | V25: 0 | X25: 2 | Y25: 2 | Z25: 0 | AA25: + | AB25: 2 | AC25: 6 | AD25: 6 | AE25: 0 | AF25: + | AG25: 6 | AI25: 4 | AJ25: 4 | AL25: 4 | AM25: 4 | AN25: + | AO25: 12 | AP25: 12 | AQ25: + | AS25: =CONCATENATE(S25,T25,D25,"(",X25,H25,AA25,AB25,L25,AF25,AG25,P25,")") -> 2d(2g + 2u + 6a) | AT25: =CONCATENATE(AK25,AJ25,D25,H25,AN25,AM25,D25,L25,AQ25,AP25,D25,P25) -> 4dg + 4du + 12da
A26: 24 | B26: 108 | C26: 109 | D26: l | E26: 121 | F26: 121 | G26: 121 | H26: y | I26: 113 | J26: 113 | K26: =IF(OR(J26=C26,J26=G26),J26+1,J26) -> 113 | L26: q | M26: 97 | N26: 97 | O26: =IF(OR(N26=G26,N26=K26),N26+1,N26) -> 97 | P26: a | Q26: 4 | R26: 1 | S26: - | T26: 4 | U26: 8 | V26: 1 | W26: - | X26: 8 | Y26: 2 | Z26: 0 | AA26: + | AB26: 2 | AC26: 6 | AD26: 6 | AE26: 0 | AF26: + | AG26: 6 | AI26: 32 | AJ26: 32 | AL26: 8 | AM26: 8 | AN26: - | AO26: 24 | AP26: 24 | AQ26: - | AS26: =CONCATENATE(S26,T26,D26,"(",X26,H26,AA26,AB26,L26,AF26,AG26,P26,")") -> -4l(8y + 2q + 6a) | AT26: =CONCATENATE(AK26,AJ26,D26,H26,AN26,AM26,D26,L26,AQ26,AP26,D26,P26) -> 32ly - 8lq - 24la
A27: 25 | B27: 106 | C27: 106 | D27: j | E27: 121 | F27: 121 | G27: 121 | H27: y | I27: 109 | J27: 109 | K27: =IF(OR(J27=C27,J27=G27),J27+1,J27) -> 109 | L27: m | M27: 117 | N27: 117 | O27: =IF(OR(N27=G27,N27=K27),N27+1,N27) -> 117 | P27: u | Q27: 6 | R27: 0 | T27: 6 | U27: 6 | V27: 1 | W27: - | X27: 6 | Y27: 1 | Z27: 1 | AA27: - | AC27: 2 | AD27: 2 | AE27: 0 | AF27: + | AG27: 2 | AI27: 36 | AJ27: 36 | AK27: - | AL27: 6 | AM27: 6 | AN27: - | AO27: 12 | AP27: 12 | AQ27: + | AS27: =CONCATENATE(S27,T27,D27,"(",X27,H27,AA27,AB27,L27,AF27,AG27,P27,")") -> 6j(6y - m + 2u) | AT27: =CONCATENATE(AK27,AJ27,D27,H27,AN27,AM27,D27,L27,AQ27,AP27,D27,P27) -> -36jy - 6jm + 12ju
A28: 26 | B28: 120 | C28: 120 | D28: x | E28: 102 | F28: 102 | G28: 102 | H28: f | I28: 116 | J28: 116 | K28: =IF(OR(J28=C28,J28=G28),J28+1,J28) -> 116 | L28: t | M28: 109 | N28: 109 | O28: =IF(OR(N28=G28,N28=K28),N28+1,N28) -> 109 | P28: m | Q28: 3 | R28: 0 | T28: 3 | U28: 4 | V28: 0 | X28: 4 | Y28: 7 | Z28: 0 | AA28: + | AB28: 7 | AC28: 3 | AD28: 3 | AE28: 0 | AF28: + | AG28: 3 | AI28: 12 | AJ28: 12 | AL28: 21 | AM28: 21 | AN28: + | AO28: 9 | AP28: 9 | AQ28: + | AS28: =CONCATENATE(S28,T28,D28,"(",X28,H28,AA28,AB28,L28,AF28,AG28,P28,")") -> 3x(4f + 7t + 3m) | AT28: =CONCATENATE(AK28,AJ28,D28,H28,AN28,AM28,D28,L28,AQ28,AP28,D28,P28) -> 12xf + 21xt + 9xm
A29: 27 | B29: 114 | C29: 114 | D29: r | E29: 106 | F29: 106 | G29: 106 | H29: j | I29: 112 | J29: 112 | K29: =IF(OR(J29=C29,J29=G29),J29+1,J29) -> 112 | L29: p | M29: 109 | N29: 109 | O29: =IF(OR(N29=G29,N29=K29),N29+1,N29) -> 109 | P29: m | Q29: 5 | R29: 0 | T29: 5 | U29: 9 | V29: 1 | W29: - | X29: 9 | Y29: 2 | Z29: 1 | AA29: - | AB29: 2 | AC29: 4 | AD29: 4 | AE29: 1 | AF29: - | AG29: 4 | AI29: 45 | AJ29: 45 | AK29: - | AL29: 10 | AM29: 10 | AN29: - | AO29: 20 | AP29: 20 | AQ29: - | AS29: =CONCATENATE(S29,T29,D29,"(",X29,H29,AA29,AB29,L29,AF29,AG29,P29,")") -> 5r(9j - 2p - 4m) | AT29: =CONCATENATE(AK29,AJ29,D29,H29,AN29,AM29,D29,L29,AQ29,AP29,D29,P29) -> -45rj - 10rp - 20rm
A30: 28 | B30: 115 | C30: 115 | D30: s | E30: 104 | F30: 104 | G30: 104 | H30: h | I30: 119 | J30: 119 | K30: =IF(OR(J30=C30,J30=G30),J30+1,J30) -> 119 | L30: w | M30: 99 | N30: 99 | O30: =IF(OR(N30=G30,N30=K30),N30+1,N30) -> 99 | P30: c | Q30: 8 | R30: 1 | S30: - | T30: 8 | U30: 3 | V30: 1 | W30: - | X30: 3 | Y30: 7 | Z30: 1 | AA30: - | AB30: 7 | AC30: 1 | AD30: 1 | AE30: 0 | AF30: + | AI30: 24 | AJ30: 24 | AL30: 56 | AM30: 56 | AN30: + | AO30: 8 | AP30: 8 | AQ30: - | AS30: =CONCATENATE(S30,T30,D30,"(",X30,H30,AA30,AB30,L30,AF30,AG30,P30,")") -> -8s(3h - 7w + c) | AT30: =CONCATENATE(AK30,AJ30,D30,H30,AN30,AM30,D30,L30,AQ30,AP30,D30,P30) -> 24sh + 56sw - 8sc
A31: 29 | B31: 121 | C31: 121 | D31: y | E31: 111 | F31: 111 | G31: 111 | H31: o | I31: 98 | J31: 98 | K31: =IF(OR(J31=C31,J31=G31),J31+1,J31) -> 98 | L31: b | M31: 102 | N31: 102 | O31: =IF(OR(N31=G31,N31=K31),N31+1,N31) -> 102 | P31: f | Q31: 6 | R31: 1 | S31: - | T31: 6 | U31: 6 | V31: 1 | W31: - | X31: 6 | Y31: 7 | Z31: 0 | AA31: + | AB31: 7 | AC31: 2 | AD31: 2 | AE31: 0 | AF31: + | AG31: 2 | AI31: 36 | AJ31: 36 | AL31: 42 | AM31: 42 | AN31: - | AO31: 12 | AP31: 12 | AQ31: - | AS31: =CONCATENATE(S31,T31,D31,"(",X31,H31,AA31,AB31,L31,AF31,AG31,P31,")") -> -6y(6o + 7b + 2f) | AT31: =CONCATENATE(AK31,AJ31,D31,H31,AN31,AM31,D31,L31,AQ31,AP31,D31,P31) -> 36yo - 42yb - 12yf
A32: 30 | B32: 103 | C32: 103 | D32: g | E32: 102 | F32: 102 | G32: 102 | H32: f | I32: 100 | J32: 100 | K32: =IF(OR(J32=C32,J32=G32),J32+1,J32) -> 100 | L32: d | M32: 99 | N32: 99 | O32: =IF(OR(N32=G32,N32=K32),N32+1,N32) -> 99 | P32: c | Q32: 8 | R32: 1 | S32: - | T32: 8 | U32: 2 | V32: 0 | X32: 2 | Y32: 3 | Z32: 1 | AA32: - | AB32: 3 | AC32: 7 | AD32: 7 | AE32: 1 | AF32: - | AG32: 7 | AI32: 16 | AJ32: 16 | AK32: - | AL32: 24 | AM32: 24 | AN32: + | AO32: 56 | AP32: 56 | AQ32: + | AS32: =CONCATENATE(S32,T32,D32,"(",X32,H32,AA32,AB32,L32,AF32,AG32,P32,")") -> -8g(2f - 3d - 7c) | AT32: =CONCATENATE(AK32,AJ32,D32,H32,AN32,AM32,D32,L32,AQ32,AP32,D32,P32) -> -16gf + 24gd + 56gc
A33: 31 | B33: 111 | C33: 111 | D33: o | E33: 99 | F33: 99 | G33: 99 | H33: c | I33: 117 | J33: 117 | K33: =IF(OR(J33=C33,J33=G33),J33+1,J33) -> 117 | L33: u | M33: 102 | N33: 102 | O33: =IF(OR(N33=G33,N33=K33),N33+1,N33) -> 102 | P33: f | Q33: 8 | R33: 1 | S33: - | T33: 8 | U33: 9 | V33: 1 | W33: - | X33: 9 | Y33: 5 | Z33: 0 | AA33: + | AB33: 5 | AC33: 4 | AD33: 4 | AE33: 1 | AF33: - | AG33: 4 | AI33: 72 | AJ33: 72 | AL33: 40 | AM33: 40 | AN33: - | AO33: 32 | AP33: 32 | AQ33: + | AS33: =CONCATENATE(S33,T33,D33,"(",X33,H33,AA33,AB33,L33,AF33,AG33,P33,")") -> -8o(9c + 5u - 4f) | AT33: =CONCATENATE(AK33,AJ33,D33,H33,AN33,AM33,D33,L33,AQ33,AP33,D33,P33) -> 72oc - 40ou + 32of
A34: 32 | B34: 113 | C34: 113 | D34: q | E34: 100 | F34: 100 | G34: 100 | H34: d | I34: 101 | J34: 101 | K34: =IF(OR(J34=C34,J34=G34),J34+1,J34) -> 101 | L34: e | M34: 107 | N34: 107 | O34: =IF(OR(N34=G34,N34=K34),N34+1,N34) -> 107 | P34: k | Q34: 3 | R34: 0 | T34: 3 | U34: 4 | V34: 1 | W34: - | X34: 4 | Y34: 2 | Z34: 0 | AA34: + | AB34: 2 | AC34: 3 | AD34: 3 | AE34: 0 | AF34: + | AG34: 3 | AI34: 12 | AJ34: 12 | AK34: - | AL34: 6 | AM34: 6 | AN34: + | AO34: 9 | AP34: 9 | AQ34: + | AS34: =CONCATENATE(S34,T34,D34,"(",X34,H34,AA34,AB34,L34,AF34,AG34,P34,")") -> 3q(4d + 2e + 3k) | AT34: =CONCATENATE(AK34,AJ34,D34,H34,AN34,AM34,D34,L34,AQ34,AP34,D34,P34) -> -12qd + 6qe + 9qk
A35: 33 | B35: 120 | C35: 120 | D35: x | E35: 108 | F35: 109 | G35: 109 | H35: m | I35: 111 | J35: 111 | K35: =IF(OR(J35=C35,J35=G35),J35+1,J35) -> 111 | L35: o | M35: 115 | N35: 115 | O35: =IF(OR(N35=G35,N35=K35),N35+1,N35) -> 115 | P35: s | Q35: 2 | R35: 1 | S35: =IF(R35=0,"","-") -> - | T35: 2 | U35: =INT(9*RAND()+1) -> 1 | V35: 0 | Y35: 3 | Z35: =INT(2*RAND()) -> 0 | AA35: + | AB35: 3 | AC35: 6 | AD35: 6 | AE35: 1 | AF35: - | AG35: 6 | AI35: =Q35*U35 -> 2 | AJ35: 2 | AK35: - | AL35: 6 | AM35: 6 | AN35: - | AO35: 12 | AP35: 12 | AQ35: + | AS35: =CONCATENATE(S35,T35,D35,"(",X35,H35,AA35,AB35,L35,AF35,AG35,P35,")") -> -2x(m + 3o - 6s) | AT35: =CONCATENATE(AK35,AJ35,D35,H35,AN35,AM35,D35,L35,AQ35,AP35,D35,P35) -> -2xm - 6xo + 12xs
A36: 34 | B36: 113 | C36: 113 | D36: q | E36: 101 | F36: 101 | G36: 101 | H36: e | I36: 99 | J36: 99 | K36: =IF(OR(J36=C36,J36=G36),J36+1,J36) -> 99 | L36: c | M36: 98 | N36: 98 | O36: =IF(OR(N36=G36,N36=K36),N36+1,N36) -> 98 | P36: b | Q36: 4 | R36: 0 | T36: 4 | U36: 7 | V36: 0 | X36: 7 | Y36: 3 | Z36: 1 | AA36: - | AB36: 3 | AC36: 3 | AD36: 3 | AE36: 0 | AF36: + | AG36: 3 | AI36: 28 | AJ36: 28 | AL36: 12 | AM36: 12 | AN36: - | AO36: 12 | AP36: 12 | AQ36: + | AS36: =CONCATENATE(S36,T36,D36,"(",X36,H36,AA36,AB36,L36,AF36,AG36,P36,")") -> 4q(7e - 3c + 3b) | AT36: =CONCATENATE(AK36,AJ36,D36,H36,AN36,AM36,D36,L36,AQ36,AP36,D36,P36) -> 28qe - 12qc + 12qb
A37: 35 | B37: 115 | C37: 115 | D37: s | E37: 114 | F37: 114 | G37: 114 | H37: r | I37: 118 | J37: 118 | K37: =IF(OR(J37=C37,J37=G37),J37+1,J37) -> 118 | L37: v | M37: 103 | N37: 103 | O37: =IF(OR(N37=G37,N37=K37),N37+1,N37) -> 103 | P37: g | Q37: 7 | R37: 1 | S37: - | T37: 7 | U37: 5 | V37: 0 | X37: 5 | Y37: 2 | Z37: 0 | AA37: + | AB37: 2 | AC37: 2 | AD37: 2 | AE37: 1 | AF37: - | AG37: 2 | AI37: 35 | AJ37: 35 | AK37: - | AL37: 14 | AM37: 14 | AN37: - | AO37: 14 | AP37: 14 | AQ37: + | AS37: =CONCATENATE(S37,T37,D37,"(",X37,H37,AA37,AB37,L37,AF37,AG37,P37,")") -> -7s(5r + 2v - 2g) | AT37: =CONCATENATE(AK37,AJ37,D37,H37,AN37,AM37,D37,L37,AQ37,AP37,D37,P37) -> -35sr - 14sv + 14sg
A38: 36 | B38: 114 | C38: 114 | D38: r | E38: 97 | F38: 97 | G38: 97 | H38: a | I38: 104 | J38: 104 | K38: =IF(OR(J38=C38,J38=G38),J38+1,J38) -> 104 | L38: h | M38: 108 | N38: 109 | O38: =IF(OR(N38=G38,N38=K38),N38+1,N38) -> 109 | P38: m | Q38: 4 | R38: 1 | S38: - | T38: 4 | U38: 9 | V38: 1 | W38: - | X38: 9 | Y38: 1 | Z38: 0 | AA38: + | AC38: 1 | AD38: 1 | AE38: 0 | AF38: + | AI38: 36 | AJ38: 36 | AL38: 4 | AM38: 4 | AN38: - | AO38: 4 | AP38: 4 | AQ38: - | AS38: =CONCATENATE(S38,T38,D38,"(",X38,H38,AA38,AB38,L38,AF38,AG38,P38,")") -> -4r(9a + h + m) | AT38: =CONCATENATE(AK38,AJ38,D38,H38,AN38,AM38,D38,L38,AQ38,AP38,D38,P38) -> 36ra - 4rh - 4rm
A39: 37 | B39: 114 | C39: 114 | D39: r | E39: 97 | F39: 97 | G39: 97 | H39: a | I39: 101 | J39: 101 | K39: =IF(OR(J39=C39,J39=G39),J39+1,J39) -> 101 | L39: e | M39: 118 | N39: 118 | O39: =IF(OR(N39=G39,N39=K39),N39+1,N39) -> 118 | P39: v | Q39: 6 | R39: 0 | T39: 6 | U39: 4 | V39: 1 | W39: - | X39: 4 | Y39: 6 | Z39: 0 | AA39: + | AB39: 6 | AC39: 6 | AD39: 6 | AE39: 0 | AF39: + | AG39: 6 | AI39: 24 | AJ39: 24 | AK39: - | AL39: 36 | AM39: 36 | AN39: + | AO39: 36 | AP39: 36 | AQ39: + | AS39: =CONCATENATE(S39,T39,D39,"(",X39,H39,AA39,AB39,L39,AF39,AG39,P39,")") -> 6r(4a + 6e + 6v) | AT39: =CONCATENATE(AK39,AJ39,D39,H39,AN39,AM39,D39,L39,AQ39,AP39,D39,P39) -> -24ra + 36re + 36rv
A40: 38 | B40: 110 | C40: 110 | D40: n | E40: 103 | F40: 103 | G40: 103 | H40: g | I40: 97 | J40: 97 | K40: =IF(OR(J40=C40,J40=G40),J40+1,J40) -> 97 | L40: a | M40: 108 | N40: 109 | O40: =IF(OR(N40=G40,N40=K40),N40+1,N40) -> 109 | P40: m | Q40: 6 | R40: 0 | T40: 6 | U40: 7 | V40: =INT(2*RAND()) -> 0 | X40: 7 | Y40: 4 | Z40: 1 | AA40: - | AB40: 4 | AC40: 5 | AD40: 5 | AE40: 0 | AF40: + | AG40: 5 | AI40: 42 | AJ40: 42 | AL40: 24 | AM40: 24 | AN40: - | AO40: 30 | AP40: 30 | AQ40: + | AS40: =CONCATENATE(S40,T40,D40,"(",X40,H40,AA40,AB40,L40,AF40,AG40,P40,")") -> 6n(7g - 4a + 5m) | AT40: =CONCATENATE(AK40,AJ40,D40,H40,AN40,AM40,D40,L40,AQ40,AP40,D40,P40) -> 42ng - 24na + 30nm
A41: 39 | B41: 99 | C41: 99 | D41: c | E41: 118 | F41: 118 | G41: 118 | H41: v | I41: 110 | J41: 110 | K41: =IF(OR(J41=C41,J41=G41),J41+1,J41) -> 110 | L41: n | M41: 103 | N41: 103 | O41: =IF(OR(N41=G41,N41=K41),N41+1,N41) -> 103 | P41: g | Q41: 3 | R41: 1 | S41: - | T41: 3 | U41: 4 | V41: 0 | X41: 4 | Y41: 4 | Z41: 0 | AA41: + | AB41: 4 | AC41: 2 | AD41: 2 | AE41: 0 | AF41: + | AG41: 2 | AI41: 12 | AJ41: 12 | AK41: - | AL41: 12 | AM41: 12 | AN41: - | AO41: 6 | AP41: 6 | AQ41: - | AS41: =CONCATENATE(S41,T41,D41,"(",X41,H41,AA41,AB41,L41,AF41,AG41,P41,")") -> -3c(4v + 4n + 2g) | AT41: =CONCATENATE(AK41,AJ41,D41,H41,AN41,AM41,D41,L41,AQ41,AP41,D41,P41) -> -12cv - 12cn - 6cg
A42: 40 | B42: 99 | C42: 99 | D42: c | E42: 107 | F42: 107 | G42: 107 | H42: k | I42: 106 | J42: 106 | K42: =IF(OR(J42=C42,J42=G42),J42+1,J42) -> 106 | L42: j | M42: 99 | N42: 99 | O42: =IF(OR(N42=G42,N42=K42),N42+1,N42) -> 99 | P42: c | Q42: 5 | R42: 1 | S42: - | T42: 5 | U42: 1 | V42: 0 | Y42: 6 | Z42: 0 | AA42: + | AB42: 6 | AC42: 4 | AD42: 4 | AE42: 0 | AF42: + | AG42: 4 | AI42: 5 | AJ42: 5 | AK42: - | AL42: 30 | AM42: 30 | AN42: - | AO42: 20 | AP42: 20 | AQ42: - | AS42: =CONCATENATE(S42,T42,D42,"(",X42,H42,AA42,AB42,L42,AF42,AG42,P42,")") -> -5c(k + 6j + 4c) | AT42: =CONCATENATE(AK42,AJ42,D42,H42,AN42,AM42,D42,L42,AQ42,AP42,D42,P42) -> -5ck - 30cj - 20cc
A43: 41 | B43: 102 | C43: 102 | D43: f | E43: 112 | F43: 112 | G43: 112 | H43: p | I43: 100 | J43: 100 | K43: =IF(OR(J43=C43,J43=G43),J43+1,J43) -> 100 | L43: d | M43: 110 | N43: 110 | O43: =IF(OR(N43=G43,N43=K43),N43+1,N43) -> 110 | P43: n | Q43: 3 | R43: 0 | T43: 3 | U43: 5 | V43: 0 | X43: 5 | Y43: 1 | Z43: 1 | AA43: - | AC43: 4 | AD43: 4 | AE43: 1 | AF43: - | AG43: 4 | AI43: 15 | AJ43: 15 | AL43: 3 | AM43: 3 | AN43: - | AO43: 12 | AP43: 12 | AQ43: - | AS43: =CONCATENATE(S43,T43,D43,"(",X43,H43,AA43,AB43,L43,AF43,AG43,P43,")") -> 3f(5p - d - 4n) | AT43: =CONCATENATE(AK43,AJ43,D43,H43,AN43,AM43,D43,L43,AQ43,AP43,D43,P43) -> 15fp - 3fd - 12fn
A44: 42 | B44: 118 | C44: 118 | D44: v | E44: 99 | F44: 99 | G44: 99 | H44: c | I44: 120 | J44: 120 | K44: =IF(OR(J44=C44,J44=G44),J44+1,J44) -> 120 | L44: x | M44: 119 | N44: 119 | O44: =IF(OR(N44=G44,N44=K44),N44+1,N44) -> 119 | P44: w | Q44: 7 | R44: 1 | S44: - | T44: 7 | U44: 8 | V44: 1 | W44: - | X44: 8 | Y44: 4 | Z44: 0 | AA44: + | AB44: 4 | AC44: 5 | AD44: 5 | AE44: 1 | AF44: - | AG44: 5 | AI44: 56 | AJ44: 56 | AL44: 28 | AM44: 28 | AN44: - | AO44: 35 | AP44: 35 | AQ44: + | AS44: =CONCATENATE(S44,T44,D44,"(",X44,H44,AA44,AB44,L44,AF44,AG44,P44,")") -> -7v(8c + 4x - 5w) | AT44: =CONCATENATE(AK44,AJ44,D44,H44,AN44,AM44,D44,L44,AQ44,AP44,D44,P44) -> 56vc - 28vx + 35vw
A45: 43 | B45: 105 | C45: 105 | D45: i | E45: 103 | F45: 103 | G45: 103 | H45: g | I45: 106 | J45: 106 | K45: =IF(OR(J45=C45,J45=G45),J45+1,J45) -> 106 | L45: j | M45: 100 | N45: 100 | O45: =IF(OR(N45=G45,N45=K45),N45+1,N45) -> 100 | P45: d | Q45: 5 | R45: 1 | S45: - | T45: 5 | U45: 7 | V45: 1 | W45: - | X45: 7 | Y45: 7 | Z45: 0 | AA45: + | AB45: 7 | AC45: 4 | AD45: 4 | AE45: 1 | AF45: - | AG45: 4 | AI45: 35 | AJ45: 35 | AL45: 35 | AM45: 35 | AN45: - | AO45: 20 | AP45: 20 | AQ45: + | AS45: =CONCATENATE(S45,T45,D45,"(",X45,H45,AA45,AB45,L45,AF45,AG45,P45,")") -> -5i(7g + 7j - 4d) | AT45: =CONCATENATE(AK45,AJ45,D45,H45,AN45,AM45,D45,L45,AQ45,AP45,D45,P45) -> 35ig - 35ij + 20id
A46: 44 | B46: 122 | C46: 122 | D46: z | E46: 97 | F46: 97 | G46: 97 | H46: a | I46: 120 | J46: 120 | K46: =IF(OR(J46=C46,J46=G46),J46+1,J46) -> 120 | L46: x | M46: 101 | N46: 101 | O46: =IF(OR(N46=G46,N46=K46),N46+1,N46) -> 101 | P46: e | Q46: 3 | R46: 1 | S46: - | T46: 3 | U46: 4 | V46: 0 | X46: 4 | Y46: 5 | Z46: 0 | AA46: + | AB46: 5 | AC46: 5 | AD46: 5 | AE46: 0 | AF46: + | AG46: 5 | AI46: 12 | AJ46: 12 | AK46: - | AL46: 15 | AM46: 15 | AN46: - | AO46: 15 | AP46: 15 | AQ46: - | AS46: =CONCATENATE(S46,T46,D46,"(",X46,H46,AA46,AB46,L46,AF46,AG46,P46,")") -> -3z(4a + 5x + 5e) | AT46: =CONCATENATE(AK46,AJ46,D46,H46,AN46,AM46,D46,L46,AQ46,AP46,D46,P46) -> -12za - 15zx - 15ze
A47: 45 | B47: 122 | C47: 122 | D47: z | E47: 110 | F47: 110 | G47: 110 | H47: n | I47: 120 | J47: 120 | K47: =IF(OR(J47=C47,J47=G47),J47+1,J47) -> 120 | L47: x | M47: 109 | N47: 109 | O47: =IF(OR(N47=G47,N47=K47),N47+1,N47) -> 109 | P47: m | Q47: 6 | R47: 0 | T47: 6 | U47: 7 | V47: 0 | X47: 7 | Y47: 5 | Z47: 0 | AA47: + | AB47: 5 | AC47: 7 | AD47: 7 | AE47: 1 | AF47: - | AG47: 7 | AI47: 42 | AJ47: 42 | AL47: 30 | AM47: 30 | AN47: + | AO47: 42 | AP47: 42 | AQ47: - | AS47: =CONCATENATE(S47,T47,D47,"(",X47,H47,AA47,AB47,L47,AF47,AG47,P47,")") -> 6z(7n + 5x - 7m) | AT47: =CONCATENATE(AK47,AJ47,D47,H47,AN47,AM47,D47,L47,AQ47,AP47,D47,P47) -> 42zn + 30zx - 42zm
A48: 46 | B48: 120 | C48: 120 | D48: x | E48: 113 | F48: 113 | G48: 113 | H48: q | I48: 109 | J48: 109 | K48: =IF(OR(J48=C48,J48=G48),J48+1,J48) -> 109 | L48: m | M48: 109 | N48: 109 | O48: =IF(OR(N48=G48,N48=K48),N48+1,N48) -> 110 | P48: n | Q48: 8 | R48: 1 | S48: - | T48: 8 | U48: 3 | V48: 0 | X48: 3 | Y48: 7 | Z48: 0 | AA48: + | AB48: 7 | AC48: 5 | AD48: 5 | AE48: 1 | AF48: - | AG48: 5 | AI48: 24 | AJ48: 24 | AK48: - | AL48: 56 | AM48: 56 | AN48: - | AO48: 40 | AP48: 40 | AQ48: + | AS48: =CONCATENATE(S48,T48,D48,"(",X48,H48,AA48,AB48,L48,AF48,AG48,P48,")") -> -8x(3q + 7m - 5n) | AT48: =CONCATENATE(AK48,AJ48,D48,H48,AN48,AM48,D48,L48,AQ48,AP48,D48,P48) -> -24xq - 56xm + 40xn
A49: 47 | B49: 114 | C49: 114 | D49: r | E49: 111 | F49: 111 | G49: 111 | H49: o | I49: 103 | J49: 103 | K49: =IF(OR(J49=C49,J49=G49),J49+1,J49) -> 103 | L49: g | M49: 107 | N49: 107 | O49: =IF(OR(N49=G49,N49=K49),N49+1,N49) -> 107 | P49: k | Q49: 4 | R49: 1 | S49: - | T49: 4 | U49: 4 | V49: 1 | W49: - | X49: 4 | Y49: 4 | Z49: 1 | AA49: - | AB49: 4 | AC49: 4 | AD49: 4 | AE49: 0 | AF49: + | AG49: 4 | AI49: 16 | AJ49: 16 | AL49: 16 | AM49: 16 | AN49: + | AO49: 16 | AP49: 16 | AQ49: - | AS49: =CONCATENATE(S49,T49,D49,"(",X49,H49,AA49,AB49,L49,AF49,AG49,P49,")") -> -4r(4o - 4g + 4k) | AT49: =CONCATENATE(AK49,AJ49,D49,H49,AN49,AM49,D49,L49,AQ49,AP49,D49,P49) -> 16ro + 16rg - 16rk
A50: 48 | B50: 115 | C50: 115 | D50: s | E50: 110 | F50: 110 | G50: 110 | H50: n | I50: 110 | J50: 110 | K50: =IF(OR(J50=C50,J50=G50),J50+1,J50) -> 111 | L50: o | M50: 117 | N50: 117 | O50: =IF(OR(N50=G50,N50=K50),N50+1,N50) -> 117 | P50: u | Q50: 6 | R50: 1 | S50: - | T50: 6 | U50: 2 | V50: 1 | W50: - | X50: 2 | Y50: 7 | Z50: 0 | AA50: + | AB50: 7 | AC50: 6 | AD50: 6 | AE50: 1 | AF50: - | AG50: 6 | AI50: 12 | AJ50: 12 | AL50: 42 | AM50: 42 | AN50: - | AO50: 36 | AP50: 36 | AQ50: + | AS50: =CONCATENATE(S50,T50,D50,"(",X50,H50,AA50,AB50,L50,AF50,AG50,P50,")") -> -6s(2n + 7o - 6u) | AT50: =CONCATENATE(AK50,AJ50,D50,H50,AN50,AM50,D50,L50,AQ50,AP50,D50,P50) -> 12sn - 42so + 36su
A51: 49 | B51: 113 | C51: 113 | D51: q | E51: 121 | F51: 121 | G51: 121 | H51: y | I51: 114 | J51: 114 | K51: =IF(OR(J51=C51,J51=G51),J51+1,J51) -> 114 | L51: r | M51: 112 | N51: 112 | O51: =IF(OR(N51=G51,N51=K51),N51+1,N51) -> 112 | P51: p | Q51: 4 | R51: 0 | T51: 4 | U51: 5 | V51: 1 | W51: - | X51: 5 | Y51: 7 | Z51: 0 | AA51: + | AB51: 7 | AC51: 2 | AD51: 2 | AE51: 1 | AF51: - | AG51: 2 | AI51: 20 | AJ51: 20 | AK51: - | AL51: 28 | AM51: 28 | AN51: + | AO51: 8 | AP51: 8 | AQ51: - | AS51: =CONCATENATE(S51,T51,D51,"(",X51,H51,AA51,AB51,L51,AF51,AG51,P51,")") -> 4q(5y + 7r - 2p) | AT51: =CONCATENATE(AK51,AJ51,D51,H51,AN51,AM51,D51,L51,AQ51,AP51,D51,P51) -> -20qy + 28qr - 8qp
A52: 50 | B52: 103 | C52: 103 | D52: g | E52: 109 | F52: 109 | G52: 109 | H52: m | I52: 99 | J52: 99 | K52: =IF(OR(J52=C52,J52=G52),J52+1,J52) -> 99 | L52: c | M52: 115 | N52: 115 | O52: =IF(OR(N52=G52,N52=K52),N52+1,N52) -> 115 | P52: s | Q52: 9 | R52: 0 | T52: 9 | U52: 3 | V52: 0 | X52: 3 | Y52: 1 | Z52: 0 | AA52: + | AC52: 1 | AD52: 1 | AE52: 0 | AF52: + | AI52: 27 | AJ52: 27 | AL52: 9 | AM52: 9 | AN52: + | AO52: 9 | AP52: 9 | AQ52: + | AS52: =CONCATENATE(S52,T52,D52,"(",X52,H52,AA52,AB52,L52,AF52,AG52,P52,")") -> 9g(3m + c + s) | AT52: =CONCATENATE(AK52,AJ52,D52,H52,AN52,AM52,D52,L52,AQ52,AP52,D52,P52) -> 27gm + 9gc + 9gs
A53: 51 | B53: 119 | C53: 119 | D53: w | E53: 120 | F53: 120 | G53: 120 | H53: x | I53: 120 | J53: 120 | K53: =IF(OR(J53=C53,J53=G53),J53+1,J53) -> 121 | L53: y | M53: 97 | N53: 97 | O53: =IF(OR(N53=G53,N53=K53),N53+1,N53) -> 97 | P53: a | Q53: =INT(9*RAND()+1) -> 5 | R53: 1 | S53: - | T53: 5 | U53: 8 | V53: 0 | X53: 8 | Y53: 2 | Z53: 1 | AA53: - | AB53: 2 | AC53: 4 | AD53: 4 | AE53: 1 | AF53: - | AG53: 4 | AI53: 40 | AJ53: 40 | AK53: - | AL53: 10 | AM53: 10 | AN53: + | AO53: 20 | AP53: 20 | AQ53: + | AS53: =CONCATENATE(S53,T53,D53,"(",X53,H53,AA53,AB53,L53,AF53,AG53,P53,")") -> -5w(8x - 2y - 4a) | AT53: =CONCATENATE(AK53,AJ53,D53,H53,AN53,AM53,D53,L53,AQ53,AP53,D53,P53) -> -40wx + 10wy + 20wa
A54: 52 | B54: 116 | C54: 116 | D54: t | E54: 105 | F54: 105 | G54: 105 | H54: i | I54: 111 | J54: 111 | K54: =IF(OR(J54=C54,J54=G54),J54+1,J54) -> 111 | L54: o | M54: 98 | N54: 98 | O54: =IF(OR(N54=G54,N54=K54),N54+1,N54) -> 98 | P54: b | Q54: 4 | R54: 0 | T54: 4 | U54: 7 | V54: 1 | W54: - | X54: 7 | Y54: 7 | Z54: 1 | AA54: - | AB54: 7 | AC54: 7 | AD54: 7 | AE54: 1 | AF54: - | AG54: 7 | AI54: 28 | AJ54: 28 | AK54: - | AL54: 28 | AM54: 28 | AN54: - | AO54: 28 | AP54: 28 | AQ54: - | AS54: =CONCATENATE(S54,T54,D54,"(",X54,H54,AA54,AB54,L54,AF54,AG54,P54,")") -> 4t(7i - 7o - 7b) | AT54: =CONCATENATE(AK54,AJ54,D54,H54,AN54,AM54,D54,L54,AQ54,AP54,D54,P54) -> -28ti - 28to - 28tb
A55: 53 | B55: 102 | C55: 102 | D55: f | E55: 106 | F55: 106 | G55: 106 | H55: j | I55: 102 | J55: 102 | K55: =IF(OR(J55=C55,J55=G55),J55+1,J55) -> 103 | L55: g | M55: 104 | N55: 104 | O55: =IF(OR(N55=G55,N55=K55),N55+1,N55) -> 104 | P55: h | Q55: 8 | R55: =INT(2*RAND()) -> 0 | T55: 8 | U55: 6 | V55: 1 | W55: - | X55: 6 | Y55: 3 | Z55: 0 | AA55: + | AB55: 3 | AC55: 1 | AD55: 1 | AE55: 1 | AF55: - | AI55: 48 | AJ55: 48 | AK55: - | AL55: 24 | AM55: 24 | AN55: + | AO55: 8 | AP55: 8 | AQ55: - | AS55: =CONCATENATE(S55,T55,D55,"(",X55,H55,AA55,AB55,L55,AF55,AG55,P55,")") -> 8f(6j + 3g - h) | AT55: =CONCATENATE(AK55,AJ55,D55,H55,AN55,AM55,D55,L55,AQ55,AP55,D55,P55) -> -48fj + 24fg - 8fh
A56: 54 | B56: 113 | C56: 113 | D56: q | E56: 109 | F56: 109 | G56: 109 | H56: m | I56: 118 | J56: 118 | K56: =IF(OR(J56=C56,J56=G56),J56+1,J56) -> 118 | L56: v | M56: 118 | N56: 118 | O56: =IF(OR(N56=G56,N56=K56),N56+1,N56) -> 119 | P56: w | Q56: 9 | R56: 1 | S56: - | T56: 9 | U56: 1 | V56: 1 | W56: - | Y56: 7 | Z56: 1 | AA56: - | AB56: 7 | AC56: 1 | AD56: 1 | AE56: 1 | AF56: - | AI56: 9 | AJ56: 9 | AL56: 63 | AM56: 63 | AN56: + | AO56: 9 | AP56: 9 | AQ56: + | AS56: =CONCATENATE(S56,T56,D56,"(",X56,H56,AA56,AB56,L56,AF56,AG56,P56,")") -> -9q(m - 7v - w) | AT56: =CONCATENATE(AK56,AJ56,D56,H56,AN56,AM56,D56,L56,AQ56,AP56,D56,P56) -> 9qm + 63qv + 9qw
A57: 55 | B57: 120 | C57: 120 | D57: x | E57: 107 | F57: 107 | G57: 107 | H57: k | I57: 116 | J57: 116 | K57: =IF(OR(J57=C57,J57=G57),J57+1,J57) -> 116 | L57: t | M57: 102 | N57: 102 | O57: =IF(OR(N57=G57,N57=K57),N57+1,N57) -> 102 | P57: f | Q57: 1 | R57: 1 | S57: - | U57: 9 | V57: 1 | W57: - | X57: 9 | Y57: 1 | Z57: 0 | AA57: + | AC57: 5 | AD57: 5 | AE57: 1 | AF57: - | AG57: 5 | AI57: 9 | AJ57: 9 | AL57: 1 | AN57: - | AO57: 5 | AP57: 5 | AQ57: + | AS57: =CONCATENATE(S57,T57,D57,"(",X57,H57,AA57,AB57,L57,AF57,AG57,P57,")") -> -x(9k + t - 5f) | AT57: =CONCATENATE(AK57,AJ57,D57,H57,AN57,AM57,D57,L57,AQ57,AP57,D57,P57) -> 9xk - xt + 5xf
A58: 56 | B58: 120 | C58: 120 | D58: x | E58: 105 | F58: 105 | G58: 105 | H58: i | I58: 99 | J58: 99 | K58: =IF(OR(J58=C58,J58=G58),J58+1,J58) -> 99 | L58: c | M58: 108 | N58: 109 | O58: =IF(OR(N58=G58,N58=K58),N58+1,N58) -> 109 | P58: m | Q58: 2 | R58: 1 | S58: - | T58: 2 | U58: 2 | V58: 1 | W58: - | X58: 2 | Y58: 4 | Z58: 1 | AA58: - | AB58: 4 | AC58: 7 | AD58: 7 | AE58: 0 | AF58: + | AG58: 7 | AI58: 4 | AJ58: 4 | AL58: 8 | AM58: 8 | AN58: + | AO58: 14 | AP58: 14 | AQ58: - | AS58: =CONCATENATE(S58,T58,D58,"(",X58,H58,AA58,AB58,L58,AF58,AG58,P58,")") -> -2x(2i - 4c + 7m) | AT58: =CONCATENATE(AK58,AJ58,D58,H58,AN58,AM58,D58,L58,AQ58,AP58,D58,P58) -> 4xi + 8xc - 14xm
A59: 57 | B59: 101 | C59: 101 | D59: e | E59: 102 | F59: 102 | G59: 102 | H59: f | I59: 101 | J59: 101 | K59: =IF(OR(J59=C59,J59=G59),J59+1,J59) -> 102 | L59: f | M59: 98 | N59: 98 | O59: =IF(OR(N59=G59,N59=K59),N59+1,N59) -> 98 | P59: b | Q59: 3 | R59: 0 | T59: 3 | U59: 6 | V59: 1 | W59: - | X59: 6 | Y59: 5 | Z59: 1 | AA59: - | AB59: 5 | AC59: 4 | AD59: 4 | AE59: 1 | AF59: - | AG59: 4 | AI59: 18 | AJ59: 18 | AK59: - | AL59: 15 | AM59: 15 | AN59: - | AO59: 12 | AP59: 12 | AQ59: - | AS59: =CONCATENATE(S59,T59,D59,"(",X59,H59,AA59,AB59,L59,AF59,AG59,P59,")") -> 3e(6f - 5f - 4b) | AT59: =CONCATENATE(AK59,AJ59,D59,H59,AN59,AM59,D59,L59,AQ59,AP59,D59,P59) -> -18ef - 15ef - 12eb
A60: 58 | B60: 121 | C60: 121 | D60: y | E60: 114 | F60: 114 | G60: 114 | H60: r | I60: 113 | J60: 113 | K60: =IF(OR(J60=C60,J60=G60),J60+1,J60) -> 113 | L60: q | M60: 108 | N60: 109 | O60: =IF(OR(N60=G60,N60=K60),N60+1,N60) -> 109 | P60: m | Q60: 6 | R60: 1 | S60: - | T60: 6 | U60: 5 | V60: 0 | X60: 5 | Y60: 5 | Z60: 1 | AA60: - | AB60: 5 | AC60: 7 | AD60: 7 | AE60: 0 | AF60: + | AG60: 7 | AI60: 30 | AJ60: 30 | AK60: - | AL60: 30 | AM60: 30 | AN60: + | AO60: 42 | AP60: 42 | AQ60: - | AS60: =CONCATENATE(S60,T60,D60,"(",X60,H60,AA60,AB60,L60,AF60,AG60,P60,")") -> -6y(5r - 5q + 7m) | AT60: =CONCATENATE(AK60,AJ60,D60,H60,AN60,AM60,D60,L60,AQ60,AP60,D60,P60) -> -30yr + 30yq - 42ym
A61: 59 | B61: 117 | C61: 117 | D61: u | E61: 101 | F61: 101 | G61: 101 | H61: e | I61: 105 | J61: 105 | K61: =IF(OR(J61=C61,J61=G61),J61+1,J61) -> 105 | L61: i | M61: 102 | N61: 102 | O61: =IF(OR(N61=G61,N61=K61),N61+1,N61) -> 102 | P61: f | Q61: 3 | R61: 1 | S61: - | T61: 3 | U61: 8 | V61: 1 | W61: - | X61: 8 | Y61: 6 | Z61: 1 | AA61: - | AB61: 6 | AC61: 5 | AD61: 5 | AE61: 0 | AF61: + | AG61: 5 | AI61: 24 | AJ61: 24 | AL61: 18 | AM61: 18 | AN61: + | AO61: 15 | AP61: 15 | AQ61: - | AS61: =CONCATENATE(S61,T61,D61,"(",X61,H61,AA61,AB61,L61,AF61,AG61,P61,")") -> -3u(8e - 6i + 5f) | AT61: =CONCATENATE(AK61,AJ61,D61,H61,AN61,AM61,D61,L61,AQ61,AP61,D61,P61) -> 24ue + 18ui - 15uf
A62: 60 | B62: 109 | C62: 109 | D62: m | E62: 112 | F62: 112 | G62: 112 | H62: p | I62: 118 | J62: 118 | K62: =IF(OR(J62=C62,J62=G62),J62+1,J62) -> 118 | L62: v | M62: 101 | N62: 101 | O62: =IF(OR(N62=G62,N62=K62),N62+1,N62) -> 101 | P62: e | Q62: 7 | R62: 1 | S62: - | T62: 7 | U62: 7 | V62: 1 | W62: - | X62: 7 | Y62: 5 | Z62: 0 | AA62: + | AB62: 5 | AC62: 1 | AD62: 1 | AE62: 0 | AF62: + | AI62: 49 | AJ62: 49 | AL62: 35 | AM62: 35 | AN62: - | AO62: 7 | AP62: 7 | AQ62: - | AS62: =CONCATENATE(S62,T62,D62,"(",X62,H62,AA62,AB62,L62,AF62,AG62,P62,")") -> -7m(7p + 5v + e) | AT62: =CONCATENATE(AK62,AJ62,D62,H62,AN62,AM62,D62,L62,AQ62,AP62,D62,P62) -> 49mp - 35mv - 7me
A63: 61 | B63: 111 | C63: 111 | D63: o | E63: 118 | F63: 118 | G63: 118 | H63: v | I63: 119 | J63: 119 | K63: =IF(OR(J63=C63,J63=G63),J63+1,J63) -> 119 | L63: w | M63: 109 | N63: 109 | O63: =IF(OR(N63=G63,N63=K63),N63+1,N63) -> 109 | P63: m | Q63: 3 | R63: 1 | S63: - | T63: 3 | U63: 2 | V63: 1 | W63: - | X63: 2 | Y63: 3 | Z63: 1 | AA63: - | AB63: 3 | AC63: 3 | AD63: 3 | AE63: 0 | AF63: + | AG63: 3 | AI63: 6 | AJ63: 6 | AL63: 9 | AM63: 9 | AN63: + | AO63: 9 | AP63: 9 | AQ63: - | AS63: =CONCATENATE(S63,T63,D63,"(",X63,H63,AA63,AB63,L63,AF63,AG63,P63,")") -> -3o(2v - 3w + 3m) | AT63: =CONCATENATE(AK63,AJ63,D63,H63,AN63,AM63,D63,L63,AQ63,AP63,D63,P63) -> 6ov + 9ow - 9om
A64: 62 | B64: 112 | C64: 112 | D64: p | E64: 100 | F64: 100 | G64: 100 | H64: d | I64: 106 | J64: 106 | K64: =IF(OR(J64=C64,J64=G64),J64+1,J64) -> 106 | L64: j | M64: 116 | N64: 116 | O64: =IF(OR(N64=G64,N64=K64),N64+1,N64) -> 116 | P64: t | Q64: 5 | R64: 1 | S64: - | T64: 5 | U64: 4 | V64: 1 | W64: - | X64: 4 | Y64: 3 | Z64: 0 | AA64: + | AB64: 3 | AC64: 3 | AD64: 3 | AE64: 0 | AF64: + | AG64: 3 | AI64: 20 | AJ64: 20 | AL64: 15 | AM64: 15 | AN64: - | AO64: 15 | AP64: 15 | AQ64: - | AS64: =CONCATENATE(S64,T64,D64,"(",X64,H64,AA64,AB64,L64,AF64,AG64,P64,")") -> -5p(4d + 3j + 3t) | AT64: =CONCATENATE(AK64,AJ64,D64,H64,AN64,AM64,D64,L64,AQ64,AP64,D64,P64) -> 20pd - 15pj - 15pt
A65: 63 | B65: 104 | C65: 104 | D65: h | E65: 114 | F65: 114 | G65: 114 | H65: r | I65: 120 | J65: 120 | K65: =IF(OR(J65=C65,J65=G65),J65+1,J65) -> 120 | L65: x | M65: 104 | N65: 104 | O65: =IF(OR(N65=G65,N65=K65),N65+1,N65) -> 104 | P65: h | Q65: 1 | R65: 0 | U65: 4 | V65: 1 | W65: - | X65: 4 | Y65: 2 | Z65: 1 | AA65: - | AB65: 2 | AC65: 2 | AD65: 2 | AE65: 1 | AF65: - | AG65: 2 | AI65: 4 | AJ65: 4 | AK65: - | AL65: 2 | AM65: 2 | AN65: - | AO65: 2 | AP65: 2 | AQ65: - | AS65: =CONCATENATE(S65,T65,D65,"(",X65,H65,AA65,AB65,L65,AF65,AG65,P65,")") -> h(4r - 2x - 2h) | AT65: =CONCATENATE(AK65,AJ65,D65,H65,AN65,AM65,D65,L65,AQ65,AP65,D65,P65) -> -4hr - 2hx - 2hh
A66: 64 | B66: 105 | C66: 105 | D66: i | E66: 115 | F66: 115 | G66: 115 | H66: s | I66: 108 | J66: 109 | K66: =IF(OR(J66=C66,J66=G66),J66+1,J66) -> 109 | L66: m | M66: 113 | N66: 113 | O66: =IF(OR(N66=G66,N66=K66),N66+1,N66) -> 113 | P66: q | Q66: 4 | R66: 1 | S66: - | T66: 4 | U66: 1 | V66: 1 | W66: - | Y66: 2 | Z66: 1 | AA66: - | AB66: 2 | AC66: 2 | AD66: 2 | AE66: 1 | AF66: - | AG66: 2 | AI66: 4 | AJ66: 4 | AL66: 8 | AM66: 8 | AN66: + | AO66: 8 | AP66: 8 | AQ66: + | AS66: =CONCATENATE(S66,T66,D66,"(",X66,H66,AA66,AB66,L66,AF66,AG66,P66,")") -> -4i(s - 2m - 2q) | AT66: =CONCATENATE(AK66,AJ66,D66,H66,AN66,AM66,D66,L66,AQ66,AP66,D66,P66) -> 4is + 8im + 8iq
A67: 65 | B67: 108 | C67: 109 | D67: l | E67: 108 | F67: 109 | G67: 110 | H67: n | I67: 114 | J67: 114 | K67: =IF(OR(J67=C67,J67=G67),J67+1,J67) -> 114 | L67: r | M67: 101 | N67: 101 | O67: =IF(OR(N67=G67,N67=K67),N67+1,N67) -> 101 | P67: e | Q67: 3 | R67: 0 | S67: =IF(R67=0,"","-") ->  | T67: 3 | U67: =INT(9*RAND()+1) -> 9 | V67: 1 | W67: - | X67: 9 | Y67: 2 | Z67: =INT(2*RAND()) -> 0 | AA67: + | AB67: 2 | AC67: 4 | AD67: 4 | AE67: =INT(2*RAND()) -> 0 | AF67: + | AG67: 4 | AI67: =Q67*U67 -> 27 | AJ67: 27 | AK67: - | AL67: 6 | AM67: 6 | AN67: + | AO67: 12 | AP67: 12 | AQ67: + | AS67: =CONCATENATE(S67,T67,D67,"(",X67,H67,AA67,AB67,L67,AF67,AG67,P67,")") -> 3l(9n + 2r + 4e) | AT67: =CONCATENATE(AK67,AJ67,D67,H67,AN67,AM67,D67,L67,AQ67,AP67,D67,P67) -> -27ln + 6lr + 12le
A68: 66 | B68: =RANDBETWEEN(97,122) -> 99 | C68: =IF(B68=108,B68+1,B68) -> 99 | D68: =CHAR(B68) -> c | E68: =RANDBETWEEN(97,121) -> 112 | F68: =IF(E68=108,E68+1,E68) -> 112 | G68: =IF(F68=C68,F68+1,F68) -> 112 | H68: =CHAR(G68) -> p | I68: =RANDBETWEEN(97,120) -> 112 | J68: =IF(I68=108,I68+1,I68) -> 112 | K68: =IF(OR(J68=C68,J68=G68),J68+1,J68) -> 113 | L68: =CHAR(K68) -> q | M68: =RANDBETWEEN(97,119) -> 108 | N68: =IF(M68=108,M68+1,M68) -> 109 | O68: =IF(OR(N68=G68,N68=K68),N68+1,N68) -> 109 | P68: =CHAR(O68) -> m | Q68: 5 | R68: 0 | T68: =IF(Q68=1,"",TEXT(Q68,Q68)) -> 5 | U68: 3 | V68: 1 | W68: =IF(V68=0,"","-") -> - | X68: =IF(U68=1,"",TEXT(U68,U68)) -> 3 | Y68: =INT(7*RAND()+1) -> 3 | Z68: 0 | AA68: =IF(Z68=0," + "," - ") -> + | AB68: =IF(Y68=1,"",TEXT(Y68,Y68)) -> 3 | AC68: =INT(7*RAND()+1) -> 3 | AD68: =AC68 -> 3 | AE68: 1 | AF68: =IF(AE68=0," + "," - ") -> - | AG68: =IF(AC68=1,"",TEXT(AC68,AC68)) -> 3 | AI68: 15 | AJ68: =IF(AI68=1,"",TEXT($E$1,AI68)) -> 15 | AK68: =IF((R68+V68)=1,"-"," ") -> - | AL68: =Q68*Y68 -> 15 | AM68: =IF(AL68=1,"",TEXT($E$1,AL68)) -> 15 | AN68: =IF((R68+Z68)=1," - "," + ") -> + | AO68: =Q68*AC68 -> 15 | AP68: =IF(AO68=1,"",TEXT($E$1,AO68)) -> 15 | AQ68: =IF((R68+AE68)=1," - "," + ") -> - | AS68: =CONCATENATE(S68,T68,D68,"(",X68,H68,AA68,AB68,L68,AF68,AG68,P68,")") -> 5c(3p + 3q - 3m) | AT68: =CONCATENATE(AK68,AJ68,D68,H68,AN68,AM68,D68,L68,AQ68,AP68,D68,P68) -> -15cp + 15cq - 15cm
A69: 67 | B69: 110 | C69: 110 | D69: n | E69: 108 | F69: 109 | G69: 109 | H69: m | I69: 117 | J69: 117 | K69: =IF(OR(J69=C69,J69=G69),J69+1,J69) -> 117 | L69: u | M69: 100 | N69: 100 | O69: =IF(OR(N69=G69,N69=K69),N69+1,N69) -> 100 | P69: d | Q69: 8 | R69: 1 | S69: - | T69: 8 | U69: 4 | V69: 0 | X69: 4 | Y69: 5 | Z69: 0 | AA69: + | AB69: 5 | AC69: 6 | AD69: 6 | AE69: 0 | AF69: + | AG69: 6 | AI69: 32 | AJ69: 32 | AK69: - | AL69: 40 | AM69: 40 | AN69: - | AO69: 48 | AP69: 48 | AQ69: - | AS69: =CONCATENATE(S69,T69,D69,"(",X69,H69,AA69,AB69,L69,AF69,AG69,P69,")") -> -8n(4m + 5u + 6d) | AT69: =CONCATENATE(AK69,AJ69,D69,H69,AN69,AM69,D69,L69,AQ69,AP69,D69,P69) -> -32nm - 40nu - 48nd
A70: 68 | B70: 106 | C70: 106 | D70: j | E70: 111 | F70: 111 | G70: 111 | H70: o | I70: 116 | J70: 116 | K70: =IF(OR(J70=C70,J70=G70),J70+1,J70) -> 116 | L70: t | M70: 117 | N70: 117 | O70: =IF(OR(N70=G70,N70=K70),N70+1,N70) -> 117 | P70: u | Q70: 7 | R70: 1 | S70: - | T70: 7 | U70: 1 | V70: 1 | W70: - | Y70: 2 | Z70: 0 | AA70: + | AB70: 2 | AC70: 4 | AD70: 4 | AE70: 0 | AF70: + | AG70: 4 | AI70: 7 | AJ70: 7 | AL70: 14 | AM70: 14 | AN70: - | AO70: 28 | AP70: 28 | AQ70: - | AS70: =CONCATENATE(S70,T70,D70,"(",X70,H70,AA70,AB70,L70,AF70,AG70,P70,")") -> -7j(o + 2t + 4u) | AT70: =CONCATENATE(AK70,AJ70,D70,H70,AN70,AM70,D70,L70,AQ70,AP70,D70,P70) -> 7jo - 14jt - 28ju
A71: 69 | B71: 113 | C71: 113 | D71: q | E71: 117 | F71: 117 | G71: 117 | H71: u | I71: 98 | J71: 98 | K71: =IF(OR(J71=C71,J71=G71),J71+1,J71) -> 98 | L71: b | M71: 101 | N71: 101 | O71: =IF(OR(N71=G71,N71=K71),N71+1,N71) -> 101 | P71: e | Q71: 3 | R71: 0 | T71: 3 | U71: 6 | V71: 1 | W71: - | X71: 6 | Y71: 7 | Z71: 0 | AA71: + | AB71: 7 | AC71: 4 | AD71: 4 | AE71: 1 | AF71: - | AG71: 4 | AI71: 18 | AJ71: 18 | AK71: - | AL71: 21 | AM71: 21 | AN71: + | AO71: 12 | AP71: 12 | AQ71: - | AS71: =CONCATENATE(S71,T71,D71,"(",X71,H71,AA71,AB71,L71,AF71,AG71,P71,")") -> 3q(6u + 7b - 4e) | AT71: =CONCATENATE(AK71,AJ71,D71,H71,AN71,AM71,D71,L71,AQ71,AP71,D71,P71) -> -18qu + 21qb - 12qe
A72: 70 | B72: 109 | C72: 109 | D72: m | E72: 118 | F72: 118 | G72: 118 | H72: v | I72: 102 | J72: 102 | K72: =IF(OR(J72=C72,J72=G72),J72+1,J72) -> 102 | L72: f | M72: 100 | N72: 100 | O72: =IF(OR(N72=G72,N72=K72),N72+1,N72) -> 100 | P72: d | Q72: 2 | R72: 0 | T72: 2 | U72: 9 | V72: =INT(2*RAND()) -> 1 | W72: - | X72: 9 | Y72: 6 | Z72: 0 | AA72: + | AB72: 6 | AC72: 2 | AD72: 2 | AE72: 0 | AF72: + | AG72: 2 | AI72: 18 | AJ72: 18 | AK72: - | AL72: 12 | AM72: 12 | AN72: + | AO72: 4 | AP72: 4 | AQ72: + | AS72: =CONCATENATE(S72,T72,D72,"(",X72,H72,AA72,AB72,L72,AF72,AG72,P72,")") -> 2m(9v + 6f + 2d) | AT72: =CONCATENATE(AK72,AJ72,D72,H72,AN72,AM72,D72,L72,AQ72,AP72,D72,P72) -> -18mv + 12mf + 4md
A73: 71 | B73: 116 | C73: 116 | D73: t | E73: 111 | F73: 111 | G73: 111 | H73: o | I73: 105 | J73: 105 | K73: =IF(OR(J73=C73,J73=G73),J73+1,J73) -> 105 | L73: i | M73: 119 | N73: 119 | O73: =IF(OR(N73=G73,N73=K73),N73+1,N73) -> 119 | P73: w | Q73: 5 | R73: 1 | S73: - | T73: 5 | U73: 1 | V73: 0 | Y73: 3 | Z73: 0 | AA73: + | AB73: 3 | AC73: 1 | AD73: 1 | AE73: 0 | AF73: + | AI73: 5 | AJ73: 5 | AK73: - | AL73: 15 | AM73: 15 | AN73: - | AO73: 5 | AP73: 5 | AQ73: - | AS73: =CONCATENATE(S73,T73,D73,"(",X73,H73,AA73,AB73,L73,AF73,AG73,P73,")") -> -5t(o + 3i + w) | AT73: =CONCATENATE(AK73,AJ73,D73,H73,AN73,AM73,D73,L73,AQ73,AP73,D73,P73) -> -5to - 15ti - 5tw
A74: 72 | B74: 108 | C74: 109 | D74: l | E74: 107 | F74: 107 | G74: 107 | H74: k | I74: 110 | J74: 110 | K74: =IF(OR(J74=C74,J74=G74),J74+1,J74) -> 110 | L74: n | M74: 99 | N74: 99 | O74: =IF(OR(N74=G74,N74=K74),N74+1,N74) -> 99 | P74: c | Q74: 8 | R74: 0 | T74: 8 | U74: 3 | V74: 1 | W74: - | X74: 3 | Y74: 5 | Z74: 1 | AA74: - | AB74: 5 | AC74: 2 | AD74: 2 | AE74: 1 | AF74: - | AG74: 2 | AI74: 24 | AJ74: 24 | AK74: - | AL74: 40 | AM74: 40 | AN74: - | AO74: 16 | AP74: 16 | AQ74: - | AS74: =CONCATENATE(S74,T74,D74,"(",X74,H74,AA74,AB74,L74,AF74,AG74,P74,")") -> 8l(3k - 5n - 2c) | AT74: =CONCATENATE(AK74,AJ74,D74,H74,AN74,AM74,D74,L74,AQ74,AP74,D74,P74) -> -24lk - 40ln - 16lc
A75: 73 | B75: 101 | C75: 101 | D75: e | E75: 102 | F75: 102 | G75: 102 | H75: f | I75: 108 | J75: 109 | K75: =IF(OR(J75=C75,J75=G75),J75+1,J75) -> 109 | L75: m | M75: 97 | N75: 97 | O75: =IF(OR(N75=G75,N75=K75),N75+1,N75) -> 97 | P75: a | Q75: 9 | R75: 1 | S75: - | T75: 9 | U75: 8 | V75: 1 | W75: - | X75: 8 | Y75: 6 | Z75: 0 | AA75: + | AB75: 6 | AC75: 1 | AD75: 1 | AE75: 0 | AF75: + | AI75: 72 | AJ75: 72 | AL75: 54 | AM75: 54 | AN75: - | AO75: 9 | AP75: 9 | AQ75: - | AS75: =CONCATENATE(S75,T75,D75,"(",X75,H75,AA75,AB75,L75,AF75,AG75,P75,")") -> -9e(8f + 6m + a) | AT75: =CONCATENATE(AK75,AJ75,D75,H75,AN75,AM75,D75,L75,AQ75,AP75,D75,P75) -> 72ef - 54em - 9ea
A76: 74 | B76: 101 | C76: 101 | D76: e | E76: 120 | F76: 120 | G76: 120 | H76: x | I76: 97 | J76: 97 | K76: =IF(OR(J76=C76,J76=G76),J76+1,J76) -> 97 | L76: a | M76: 119 | N76: 119 | O76: =IF(OR(N76=G76,N76=K76),N76+1,N76) -> 119 | P76: w | Q76: 2 | R76: 1 | S76: - | T76: 2 | U76: 8 | V76: 0 | X76: 8 | Y76: 4 | Z76: 1 | AA76: - | AB76: 4 | AC76: 1 | AD76: 1 | AE76: 1 | AF76: - | AI76: 16 | AJ76: 16 | AK76: - | AL76: 8 | AM76: 8 | AN76: + | AO76: 2 | AP76: 2 | AQ76: + | AS76: =CONCATENATE(S76,T76,D76,"(",X76,H76,AA76,AB76,L76,AF76,AG76,P76,")") -> -2e(8x - 4a - w) | AT76: =CONCATENATE(AK76,AJ76,D76,H76,AN76,AM76,D76,L76,AQ76,AP76,D76,P76) -> -16ex + 8ea + 2ew
A77: 75 | B77: 98 | C77: 98 | D77: b | E77: 97 | F77: 97 | G77: 97 | H77: a | I77: 108 | J77: 109 | K77: =IF(OR(J77=C77,J77=G77),J77+1,J77) -> 109 | L77: m | M77: 97 | N77: 97 | O77: =IF(OR(N77=G77,N77=K77),N77+1,N77) -> 98 | P77: b | Q77: 6 | R77: 0 | T77: 6 | U77: 4 | V77: 1 | W77: - | X77: 4 | Y77: 6 | Z77: 0 | AA77: + | AB77: 6 | AC77: 2 | AD77: 2 | AE77: 1 | AF77: - | AG77: 2 | AI77: 24 | AJ77: 24 | AK77: - | AL77: 36 | AM77: 36 | AN77: + | AO77: 12 | AP77: 12 | AQ77: - | AS77: =CONCATENATE(S77,T77,D77,"(",X77,H77,AA77,AB77,L77,AF77,AG77,P77,")") -> 6b(4a + 6m - 2b) | AT77: =CONCATENATE(AK77,AJ77,D77,H77,AN77,AM77,D77,L77,AQ77,AP77,D77,P77) -> -24ba + 36bm - 12bb
